{"text_format":"1","workbook":"xlsx","n_sheets":5,"sheets":["U_Calculation","DB","Instrucciones","Instructions","Traduc"],"not_rendered":{"charts":0,"images":13,"macros":1,"external_links":0,"defined_names":2,"comments":0,"pivot_tables":0},"unopened":[],"bounds":{"document_bytes":16777216,"sheet_cells":100000,"rows_first":2000,"rows_last":500,"rows_between":2000,"halvings":0,"cell_chars":16384,"cell_head_chars":4096},"cells_cut":0,"cells_raw":0,"read":"whole","date_system":"1900"}

{"sheet":"U_Calculation","index":0,"n_rows":77,"n_cols":428,"rows_kept":77,"cut":false,"hidden":false,"merged":[[15,7,15,9],[15,11,15,13],[10,1,10,3],[11,1,11,3],[15,3,15,5]]}
[null,null,null,{"$f":"Traduc!B3","v":"Thermal Transmittance calculation opaque walls"}]
[null,null,null,"EN ISO 6946",null,null,null,null,null,null,null,null,null,null,null,null,null,null,null,null,null,null,null,null,null,null,null,null,null,1]
[]
[]
[]
[]
[]
[]
[null,null,null,null,null,null,null,null,null,null,null,null,null,null,null,null,null,null,null,null,null,null,null,null,null,null,null,null,null,null,null,null,null,null,null,null,null,null,null,null,null,null,null,null,null,null,null,null,null,null,null,null,null,null,null,null,null,null,null,null,null,null,null,null,null,null,null,null,null,null,null,null,null,null,null,null,null,null,null,null,null,null,null,null,null,null,null,null,null,null,null,null,null,null,null,null,null,null,null,null,null,null,null,null,null,null,null,null,null,null,null,null,null,null,null,null,null,null,null,null,null,null,null,null,null,null,null,null,null,null,null,null,null,null,null,null,null,null,null,null,null,null,null,null,null,null,null,null,null,null,null,null,null,null,null,null,null,null,null,null,null,null,null,null,null,null,null,null,null,null,null,null,null,null,null,null,null,null,null,null,null,null,null,null,null,null,null,null,null,null,null,null,null,null,null,null,null,null,null,null,null,null,null,null,null,null,null,null,null,null,null,null,null,null,null,null,null,null,null,null,null,null,null,null,null,null,null,null,null,null,null,null,null,null,null,null,null,null,null,null,null,null,null,null,null,null,null,null,null,null,null,null,null,null,null,null,null,null,null,null,null,null,null,null,null,null,null,null,null,null,null,null,null,null,null,null,null,null,null,null,null,null,null,null,null,null,null,null,null,null,null,null,null,null,null,null,null,null,null,null,null,null,null,null,null,null,null,null,null,null,null,null,null,null,null,null,null,null,null,null,null,null,null,null,null,null,null,null,null,null,null,null,null,null,null,null,null,null,null,null,null,null,null,null,null,null,null,null,null,null,null,null,null,null,null,null,null,null,null,null,null,null,null,null,null,null,null,null,null,null,null,null,null,null,null,null,null,null,null,null,null,null,null,null,null,null,null,null,null,null,null,null,null,null,null,null,null,null,null,null,null,null,null,null,null,null,null,null,null,null,null,null,null,null,null,null,null,null,null,null,null,null,null,null,null,null,null,224]
[]
[]
[]
[null,{"$f":"Traduc!B4","v":"Construction shall be divided in layers (perpendicular to heat flow) and Sections (parallel to heat flow)"}]
[null,null,{"$f":"Traduc!B5","v":"Type of wall"},1,"Rsi+Rse (m2·K/W)",{"$f":"INDEX(DB!B335:E340,D14,4)","v":0.17}]
[null,null,null,null,{"$f":"Traduc!B6","v":"Total Length (m)"},{"$f":"X18+T18+P18+L18+H18+D18","v":0.6}]
[null,null,null,{"$f":"Traduc!B7","v":"Section a"},null,null,null,{"$f":"Traduc!B8","v":"Section b"},null,null,null,{"$f":"Traduc!B9","v":"Section c"},null,null,null,{"$f":"Traduc!B10","v":"Section d"},null,null,null,{"$f":"Traduc!B11","v":"Section f"},null,null,null,{"$f":"Traduc!B12","v":"Section g"}]
[null,null,null,{"$f":"Traduc!B13","v":"Length (m)"},null,null,null,{"$f":"Traduc!B13","v":"Length (m)"},null,null,null,{"$f":"Traduc!B13","v":"Length (m)"},null,null,null,{"$f":"Traduc!B13","v":"Length (m)"},null,null,null,{"$f":"Traduc!B13","v":"Length (m)"},null,null,null,{"$f":"Traduc!B13","v":"Length (m)"}]
[null,null,null,0.5,null,null,null,0.05,null,null,null,0.05,null,null,null,0,null,null,null,0,null,null,null,0]
[null,null,null,"fa",null,null,null,"fa",null,null,null,"fa",null,null,null,"fa",null,null,null,"fa",null,null,null,"fa"]
[null,null,"fa",{"$f":"D18/$F$15","v":0.83333333333333337},null,null,null,{"$f":"H18/$F$15","v":8.3333333333333343E-2},null,null,null,{"$f":"L18/$F$15","v":8.3333333333333343E-2},null,null,null,{"$f":"P18/$F$15","v":0},null,null,null,{"$f":"T18/$F$15","v":0},null,null,null,{"$f":"X18/$F$15","v":0},null,null,null,{"$f":"X20+T20+P20+L20+H20+D20","v":1}]
[null,{"$f":"Traduc!B14","v":"Layers"},{"$f":"Traduc!B15","v":"Thickness (m)"},{"$f":"Traduc!B16","v":"Product"},"l (W/mK)","Ri (m2·K/W)","fa/Ra",{"$f":"Traduc!B16","v":"Product"},"l (W/mK)","Ri (m2·K/W)","fa/Ra",{"$f":"Traduc!B16","v":"Product"},"l (W/mK)","Ri (m2·K/W)","fa/Ra",{"$f":"Traduc!B16","v":"Product"},"l (W/mK)","Ri (m2·K/W)","fa/Ra",{"$f":"Traduc!B16","v":"Product"},"l (W/mK)","Ri (m2·K/W)","fa/Ra",{"$f":"Traduc!B16","v":"Product"},"l (W/mK)","Ri (m2·K/W)","fa/Ra","1 / S(fa/Raj)"]
[null,1,0.13,154,{"$f":"INDEX(DB!$A$3:$D$319,D22,3)","v":0},{"$f":"IF(E22=0,INDEX(DB!$B$3:$D$318,D22,3),$C22/E22)","v":0.17280000000000012},{"$f":"IF(F22=0,0,D$20/F22)","v":4.8225308641975273},154,{"$f":"INDEX(DB!$A$3:$D$319,H22,3)","v":0},{"$f":"IF(I22=0,INDEX(DB!$B$3:$D$318,H22,3),$C22/I22)","v":0.17280000000000012},{"$f":"IF(J22=0,0,H$20/J22)","v":0.48225308641975279},154,{"$f":"INDEX(DB!$A$3:$D$319,L22,3)","v":0},{"$f":"IF(M22=0,INDEX(DB!$B$3:$D$318,L22,3),$C22/M22)","v":0.17280000000000012},{"$f":"IF(N22=0,0,L$20/N22)","v":0.48225308641975279},1,{"$f":"INDEX(DB!$A$3:$D$319,P22,3)","v":0},{"$f":"IF(Q22=0,INDEX(DB!$B$3:$D$318,P22,3),$C22/Q22)","v":0},{"$f":"IF(R22=0,0,P$20/R22)","v":0},1,{"$f":"INDEX(DB!$A$3:$D$319,T22,3)","v":0},{"$f":"IF(U22=0,INDEX(DB!$B$3:$D$318,T22,3),$C22/U22)","v":0},{"$f":"IF(V22=0,0,T$20/V22)","v":0},1,{"$f":"INDEX(DB!$A$3:$D$319,X22,3)","v":0},{"$f":"IF(Y22=0,INDEX(DB!$B$3:$D$318,X22,3),$C22/Y22)","v":0},{"$f":"IF(Z22=0,0,X$20/Z22)","v":0},{"$f":"IF((AA22+W22+S22+O22+K22+G22)=0,0,1/(AA22+W22+S22+O22+K22+G22))","v":0.17280000000000012}]
[null,2,0.01,187,{"$f":"INDEX(DB!$A$3:$D$319,D23,3)","v":0.8},{"$f":"IF(E23=0,INDEX(DB!$B$3:$D$318,D23,3),$C23/E23)","v":1.2499999999999999E-2},66.666666666666671,187,{"$f":"INDEX(DB!$A$3:$D$319,H23,3)","v":0.8},{"$f":"IF(I23=0,INDEX(DB!$B$3:$D$318,H23,3),$C23/I23)","v":1.2499999999999999E-2},6.6666666666666679,187,{"$f":"INDEX(DB!$A$3:$D$319,L23,3)","v":0.8},{"$f":"IF(M23=0,INDEX(DB!$B$3:$D$318,L23,3),$C23/M23)","v":1.2499999999999999E-2},6.6666666666666679,1,{"$f":"INDEX(DB!$A$3:$D$319,P23,3)","v":0},{"$f":"IF(Q23=0,INDEX(DB!$B$3:$D$318,P23,3),$C23/Q23)","v":0},0,1,{"$f":"INDEX(DB!$A$3:$D$319,T23,3)","v":0},{"$f":"IF(U23=0,INDEX(DB!$B$3:$D$318,T23,3),$C23/U23)","v":0},0,1,{"$f":"INDEX(DB!$A$3:$D$319,X23,3)","v":0},{"$f":"IF(Y23=0,INDEX(DB!$B$3:$D$318,X23,3),$C23/Y23)","v":0},0,1.2500000000000001E-2]
[null,3,0.06,256,{"$f":"INDEX(DB!$A$3:$D$319,D24,3)","v":3.5000000000000003E-2},{"$f":"IF(E24=0,INDEX(DB!$B$3:$D$318,D24,3),$C24/E24)","v":1.714285714285714},0.48611111111111122,274,{"$f":"INDEX(DB!$A$3:$D$319,H24,3)","v":0.15},{"$f":"IF(I24=0,INDEX(DB!$B$3:$D$318,H24,3),$C24/I24)","v":0.4},0.20833333333333334,256,{"$f":"INDEX(DB!$A$3:$D$319,L24,3)","v":3.5000000000000003E-2},{"$f":"IF(M24=0,INDEX(DB!$B$3:$D$318,L24,3),$C24/M24)","v":1.714285714285714},4.8611111111111126E-2,1,{"$f":"INDEX(DB!$A$3:$D$319,P24,3)","v":0},{"$f":"IF(Q24=0,INDEX(DB!$B$3:$D$318,P24,3),$C24/Q24)","v":0},0,1,{"$f":"INDEX(DB!$A$3:$D$319,T24,3)","v":0},{"$f":"IF(U24=0,INDEX(DB!$B$3:$D$318,T24,3),$C24/U24)","v":0},0,1,{"$f":"INDEX(DB!$A$3:$D$319,X24,3)","v":0},{"$f":"IF(Y24=0,INDEX(DB!$B$3:$D$318,X24,3),$C24/Y24)","v":0},0,1.3457943925233642]
[null,4,0.05,256,{"$f":"INDEX(DB!$A$3:$D$319,D25,3)","v":3.5000000000000003E-2},{"$f":"IF(E25=0,INDEX(DB!$B$3:$D$318,D25,3),$C25/E25)","v":1.4285714285714286},0.58333333333333337,256,{"$f":"INDEX(DB!$A$3:$D$319,H25,3)","v":3.5000000000000003E-2},{"$f":"IF(I25=0,INDEX(DB!$B$3:$D$318,H25,3),$C25/I25)","v":1.4285714285714286},5.8333333333333341E-2,256,{"$f":"INDEX(DB!$A$3:$D$319,L25,3)","v":3.5000000000000003E-2},{"$f":"IF(M25=0,INDEX(DB!$B$3:$D$318,L25,3),$C25/M25)","v":1.4285714285714286},5.8333333333333341E-2,1,{"$f":"INDEX(DB!$A$3:$D$319,P25,3)","v":0},{"$f":"IF(Q25=0,INDEX(DB!$B$3:$D$318,P25,3),$C25/Q25)","v":0},0,1,{"$f":"INDEX(DB!$A$3:$D$319,T25,3)","v":0},{"$f":"IF(U25=0,INDEX(DB!$B$3:$D$318,T25,3),$C25/U25)","v":0},0,1,{"$f":"INDEX(DB!$A$3:$D$319,X25,3)","v":0},{"$f":"IF(Y25=0,INDEX(DB!$B$3:$D$318,X25,3),$C25/Y25)","v":0},0,1.4285714285714284]
[null,5,0.05,256,{"$f":"INDEX(DB!$A$3:$D$319,D26,3)","v":3.5000000000000003E-2},{"$f":"IF(E26=0,INDEX(DB!$B$3:$D$318,D26,3),$C26/E26)","v":1.4285714285714286},0.58333333333333337,256,{"$f":"INDEX(DB!$A$3:$D$319,H26,3)","v":3.5000000000000003E-2},{"$f":"IF(I26=0,INDEX(DB!$B$3:$D$318,H26,3),$C26/I26)","v":1.4285714285714286},5.8333333333333341E-2,274,{"$f":"INDEX(DB!$A$3:$D$319,L26,3)","v":0.15},{"$f":"IF(M26=0,INDEX(DB!$B$3:$D$318,L26,3),$C26/M26)","v":0.33333333333333337},0.25,1,{"$f":"INDEX(DB!$A$3:$D$319,P26,3)","v":0},{"$f":"IF(Q26=0,INDEX(DB!$B$3:$D$318,P26,3),$C26/Q26)","v":0},0,1,{"$f":"INDEX(DB!$A$3:$D$319,T26,3)","v":0},{"$f":"IF(U26=0,INDEX(DB!$B$3:$D$318,T26,3),$C26/U26)","v":0},0,1,{"$f":"INDEX(DB!$A$3:$D$319,X26,3)","v":0},{"$f":"IF(Y26=0,INDEX(DB!$B$3:$D$318,X26,3),$C26/Y26)","v":0},0,1.1214953271028036]
[null,6,2.5000000000000001E-2,21,{"$f":"INDEX(DB!$A$3:$D$319,D27,3)","v":0},{"$f":"IF(E27=0,INDEX(DB!$B$3:$D$318,D27,3),$C27/E27)","v":0.18},4.6296296296296298,21,{"$f":"INDEX(DB!$A$3:$D$319,H27,3)","v":0},{"$f":"IF(I27=0,INDEX(DB!$B$3:$D$318,H27,3),$C27/I27)","v":0.18},0.46296296296296302,21,{"$f":"INDEX(DB!$A$3:$D$319,L27,3)","v":0},{"$f":"IF(M27=0,INDEX(DB!$B$3:$D$318,L27,3),$C27/M27)","v":0.18},0.46296296296296302,1,{"$f":"INDEX(DB!$A$3:$D$319,P27,3)","v":0},{"$f":"IF(Q27=0,INDEX(DB!$B$3:$D$318,P27,3),$C27/Q27)","v":0},0,1,{"$f":"INDEX(DB!$A$3:$D$319,T27,3)","v":0},{"$f":"IF(U27=0,INDEX(DB!$B$3:$D$318,T27,3),$C27/U27)","v":0},0,1,{"$f":"INDEX(DB!$A$3:$D$319,X27,3)","v":0},{"$f":"IF(Y27=0,INDEX(DB!$B$3:$D$318,X27,3),$C27/Y27)","v":0},0,0.18]
[null,7,0.05,163,{"$f":"INDEX(DB!$A$3:$D$319,D28,3)","v":0},{"$f":"IF(E28=0,INDEX(DB!$B$3:$D$318,D28,3),$C28/E28)","v":0.11250000000000013},7.4074074074073994,163,{"$f":"INDEX(DB!$A$3:$D$319,H28,3)","v":0},{"$f":"IF(I28=0,INDEX(DB!$B$3:$D$318,H28,3),$C28/I28)","v":0.11250000000000013},0.74074074074074003,163,{"$f":"INDEX(DB!$A$3:$D$319,L28,3)","v":0},{"$f":"IF(M28=0,INDEX(DB!$B$3:$D$318,L28,3),$C28/M28)","v":0.11250000000000013},0.74074074074074003,1,{"$f":"INDEX(DB!$A$3:$D$319,P28,3)","v":0},{"$f":"IF(Q28=0,INDEX(DB!$B$3:$D$318,P28,3),$C28/Q28)","v":0},0,1,{"$f":"INDEX(DB!$A$3:$D$319,T28,3)","v":0},{"$f":"IF(U28=0,INDEX(DB!$B$3:$D$318,T28,3),$C28/U28)","v":0},0,1,{"$f":"INDEX(DB!$A$3:$D$319,X28,3)","v":0},{"$f":"IF(Y28=0,INDEX(DB!$B$3:$D$318,X28,3),$C28/Y28)","v":0},0,0.11250000000000013]
[null,8,1.4999999999999999E-2,224,{"$f":"INDEX(DB!$A$3:$D$319,D29,3)","v":0.56999999999999995},{"$f":"IF(E29=0,INDEX(DB!$B$3:$D$318,D29,3),$C29/E29)","v":2.6315789473684213E-2},31.666666666666664,224,{"$f":"INDEX(DB!$A$3:$D$319,H29,3)","v":0.56999999999999995},{"$f":"IF(I29=0,INDEX(DB!$B$3:$D$318,H29,3),$C29/I29)","v":2.6315789473684213E-2},3.166666666666667,224,{"$f":"INDEX(DB!$A$3:$D$319,L29,3)","v":0.56999999999999995},{"$f":"IF(M29=0,INDEX(DB!$B$3:$D$318,L29,3),$C29/M29)","v":2.6315789473684213E-2},3.166666666666667,1,{"$f":"INDEX(DB!$A$3:$D$319,P29,3)","v":0},{"$f":"IF(Q29=0,INDEX(DB!$B$3:$D$318,P29,3),$C29/Q29)","v":0},0,1,{"$f":"INDEX(DB!$A$3:$D$319,T29,3)","v":0},{"$f":"IF(U29=0,INDEX(DB!$B$3:$D$318,T29,3),$C29/U29)","v":0},0,1,{"$f":"INDEX(DB!$A$3:$D$319,X29,3)","v":0},{"$f":"IF(Y29=0,INDEX(DB!$B$3:$D$318,X29,3),$C29/Y29)","v":0},0,2.6315789473684209E-2]
[null,9,null,1,{"$f":"INDEX(DB!$A$3:$D$319,D30,3)","v":0},{"$f":"IF(E30=0,INDEX(DB!$B$3:$D$318,D30,3),$C30/E30)","v":0},0,1,{"$f":"INDEX(DB!$A$3:$D$319,H30,3)","v":0},{"$f":"IF(I30=0,INDEX(DB!$B$3:$D$318,H30,3),$C30/I30)","v":0},0,1,{"$f":"INDEX(DB!$A$3:$D$319,L30,3)","v":0},{"$f":"IF(M30=0,INDEX(DB!$B$3:$D$318,L30,3),$C30/M30)","v":0},0,1,{"$f":"INDEX(DB!$A$3:$D$319,P30,3)","v":0},{"$f":"IF(Q30=0,INDEX(DB!$B$3:$D$318,P30,3),$C30/Q30)","v":0},0,1,{"$f":"INDEX(DB!$A$3:$D$319,T30,3)","v":0},{"$f":"IF(U30=0,INDEX(DB!$B$3:$D$318,T30,3),$C30/U30)","v":0},0,1,{"$f":"INDEX(DB!$A$3:$D$319,X30,3)","v":0},{"$f":"IF(Y30=0,INDEX(DB!$B$3:$D$318,X30,3),$C30/Y30)","v":0},0,0]
[null,10,null,1,{"$f":"INDEX(DB!$A$3:$D$319,D31,3)","v":0},{"$f":"IF(E31=0,INDEX(DB!$B$3:$D$318,D31,3),$C31/E31)","v":0},0,1,{"$f":"INDEX(DB!$A$3:$D$319,H31,3)","v":0},{"$f":"IF(I31=0,INDEX(DB!$B$3:$D$318,H31,3),$C31/I31)","v":0},0,1,{"$f":"INDEX(DB!$A$3:$D$319,L31,3)","v":0},{"$f":"IF(M31=0,INDEX(DB!$B$3:$D$318,L31,3),$C31/M31)","v":0},0,1,{"$f":"INDEX(DB!$A$3:$D$319,P31,3)","v":0},{"$f":"IF(Q31=0,INDEX(DB!$B$3:$D$318,P31,3),$C31/Q31)","v":0},0,1,{"$f":"INDEX(DB!$A$3:$D$319,T31,3)","v":0},{"$f":"IF(U31=0,INDEX(DB!$B$3:$D$318,T31,3),$C31/U31)","v":0},0,1,{"$f":"INDEX(DB!$A$3:$D$319,X31,3)","v":0},{"$f":"IF(Y31=0,INDEX(DB!$B$3:$D$318,X31,3),$C31/Y31)","v":0},0,0]
[null,"TOTAL",{"$f":"SUM(C22:C31)","v":0.39},null,null,"Rtot (a)",null,null,null,"Rtot (a)",null,null,null,"Rtot (a)",null,null,null,"Rtot (a)",null,null,null,"Rtot (a)",null,null,null,"Rtot (a)",null,"Rlower","e=100X( Rtot,Upper-Rtot,lower)/(2xRTot)"]
[null,null,null,null,null,{"$f":"SUM(F22:F31)","v":5.0755443609022555},null,null,null,{"$f":"SUM(J22:J31)","v":3.7612586466165423},null,null,null,{"$f":"SUM(N22:N31)","v":3.980306265664161},null,null,null,{"$f":"SUM(R22:R31)","v":0},null,null,null,{"$f":"SUM(V22:V31)","v":0},null,null,null,{"$f":"SUM(Z22:Z31)","v":0},null,{"$f":"SUM(AB22:AB31)","v":4.3999769376712798},{"$f":"100*(AB35-AB33)/(2*AC35)","v":4.6014744137401493}]
[null,null,null,null,null,"fa / Rtot(a)",null,null,null,"fa / Rtot(a)",null,null,null,"fa / Rtot(a)",null,null,null,"fa / Rtot(a)",null,null,null,"fa / Rtot(a)",null,null,null,"fa / Rtot(a)",null,"Rupper","Rtot=(Rupper+Rlower)/2"]
[null,null,null,null,null,{"$f":"IF(F33=0,0,D20/F33)","v":0.16418600135832437},null,null,null,{"$f":"IF(J33=0,0,H20/J33)","v":2.2155704024315433E-2},null,null,null,{"$f":"IF(N33=0,0,L20/N33)","v":2.0936412369119087E-2},null,null,null,{"$f":"IF(R33=0,0,P20/R33)","v":0},null,null,null,{"$f":"IF(V33=0,0,T20/V33)","v":0},null,null,null,{"$f":"IF(Z33=0,0,X20/Z33)","v":0},null,{"$f":"1/(Z35+V35+R35+N35+J35+F35)","v":4.8244359358647948},{"$f":"(AB33+AB35)/2","v":4.6122064367680373}]
[null,"TOTAL (m)",{"$f":"SUM(C22:C31)","v":0.39},null,null,null,"Transmitancia Térmica"]
[null,null,null,{"$f":"Traduc!B17","v":"Thermal Transmittance without corrections"},null,null,null,{"$f":"Traduc!B18","v":"Thermal Transmittance with corrections"}]
[null,null,"U=",{"$f":"1/(AC35+F14)","v":0.20910849692967895},"W/m2·K","U=",null,{"$f":"D38+E63+E75+E49","v":0.23357431412951674},"W/m2·K"]
[null,null,"Rc,opac=",{"$f":"AC35","v":4.6122064367680373},"m2·K/W"]
[null,null,"Rc,opac+Rsi+Rse=",{"$f":"D39+F14","v":4.7822064367680372},"m2·K/W"]
[]
[null,null,{"$f":"Traduc!B19","v":"AIR GAPS CORRECTION"}]
[null,null,{"$f":"Traduc!B20","v":"Level"},null,"DU\""]
[null,null,0,{"$f":"VLOOKUP(C44,DB!B348:D350,2,0)","v":"No air voids within the insulation, or where only minor air voids are present that have no significant effect on the thermal transmittance."},{"$f":"VLOOKUP(C44,DB!B348:D350,3,0)","v":0}]
[null,null,{"$f":"Traduc!B21","v":"Layer Nº next to air gap"}]
[null,null,3,{"$f":"IF(C46=\"\",\"\",INDEX(DB!$B$3:$B$319,VLOOKUP(C46,$B$22:$D$31,3,0)))","v":"URSA/URSA GLASSWOOL Lambda 035"},{"$f":"IF(C46=\"\",\"\",VLOOKUP(C46,$B$22:$F$31,5,0))","v":1.714285714285714}]
[null,null,4,{"$f":"IF(C47=\"\",\"\",INDEX(DB!$B$3:$B$319,VLOOKUP(C47,$B$22:$D$31,3,0)))","v":"URSA/URSA GLASSWOOL Lambda 035"},{"$f":"IF(C47=\"\",\"\",VLOOKUP(C47,$B$22:$F$31,5,0))","v":1.4285714285714286},{"$f":"SUM(E46:E48)","v":4.5714285714285712}]
[null,null,5,{"$f":"IF(C48=\"\",\"\",INDEX(DB!$B$3:$B$319,VLOOKUP(C48,$B$22:$D$31,3,0)))","v":"URSA/URSA GLASSWOOL Lambda 035"},1.4285714285714286]
[null,null,null,"Dug=",{"$f":"E44*(F47/F33)^2","v":0}]
[]
[null,null,{"$f":"Traduc!B22","v":"FASTENERS CORRECTION"}]
[null,null,4,{"$f":"Traduc!B23","v":"Fasteners density (un/m2)"}]
[null,null,50,{"$f":"Traduc!B24","v":"Fasteners thermal conductivity (W/mK)"}]
[null,null,{"$f":"+PI()*0.003^2","v":2.8274333882308137E-5},{"$f":"Traduc!B25","v":"Areca of fastener (m2)"}]
[null,null,0.15,{"$f":"Traduc!B26","v":"Insulation Thickness d0 (m)"}]
[null,null,0.15,{"$f":"Traduc!B27","v":"Fastener penetration thickness d1 (m)"}]
[null,null,{"$f":"Traduc!B28","v":"Layer nº peented by fastener"}]
[null,null,3,{"$f":"IF(C58=\"\",\"\",INDEX(DB!$B$3:$B$319,VLOOKUP(C58,$B$22:$D$31,3,0)))","v":"URSA/URSA GLASSWOOL Lambda 035"},{"$f":"IF(C58=\"\",\"\",VLOOKUP(C58,$B$22:$F$31,5,0))","v":1.714285714285714}]
[null,null,4,{"$f":"IF(C59=\"\",\"\",INDEX(DB!$B$3:$B$319,VLOOKUP(C59,$B$22:$D$31,3,0)))","v":"URSA/URSA GLASSWOOL Lambda 035"},{"$f":"IF(C59=\"\",\"\",VLOOKUP(C59,$B$22:$F$31,5,0))","v":1.4285714285714286},{"$f":"SUM(E58:E60)","v":4.5714285714285712}]
[null,null,5,{"$f":"IF(C60=\"\",\"\",INDEX(DB!$B$3:$B$319,VLOOKUP(C60,$B$22:$D$31,3,0)))","v":"URSA/URSA GLASSWOOL Lambda 035"},1.4285714285714286]
[]
[]
[null,null,null,"Duf=",{"$f":"IF(OR(C55=0,C56=0),0,0.8*(C56/C55)*(C53*C54*C52/C56)*(F59/F33)^2)","v":2.4465817199837779E-2}]
[]
[null,null,{"$f":"Traduc!B29","v":"INVERTED ROOF CORRECTION"}]
[null,null,null,{"$f":"Traduc!B30","v":"Average rain precipitation (mm/day)"}]
[null,null,{"$f":"Traduc!B31","v":"Layer nº above insulation"}]
[null,null,null,{"$f":"IF(C68=\"\",\"\",VLOOKUP(C68,$B$22:$D$31,3,0))","v":""},{"$f":"IF(C68=\"\",\"\",VLOOKUP(C68,$B$22:$F$31,5,0))","v":""}]
[null,null,null,{"$f":"IF(C69=\"\",\"\",VLOOKUP(C69,$B$22:$D$31,3,0))","v":""},{"$f":"IF(C69=\"\",\"\",VLOOKUP(C69,$B$22:$F$31,5,0))","v":""}]
[null,null,null,"","",{"$f":"SUM(E68:E73)","v":0}]
[null,null,null,{"$f":"IF(C71=\"\",\"\",VLOOKUP(C71,$B$22:$D$31,3,0))","v":""},{"$f":"IF(C71=\"\",\"\",VLOOKUP(C71,$B$22:$F$31,5,0))","v":""}]
[null,null,null,"",""]
[null,null,null,"",""]
[]
[null,null,null,"Duf=",{"$f":"0.04*C66*(F70/F33)^2","v":0}]
[]
[null,null,"© JosepSole Bonet"]

{"sheet":"DB","index":1,"n_rows":350,"n_cols":14,"rows_kept":350,"cut":false,"hidden":false,"merged":[]}
[]
[null,"Material","Lambda (W/m·K)","R (m2.K/W)",null,null,null,null,"id","English","Español","Français","Lambda (W/m·K)","R (m2.K/W)"]
[null,{"$f":"INDEX(J3:L3,U_Calculation!$AD$2)","v":"None"},{"$f":"M3","v":0},{"$f":"N3","v":0},null,null,null,null,1,"None","Ninguno","Aucun",0,0]
[null,{"$f":"INDEX(J4:L4,U_Calculation!$AD$2)","v":"Air gaps/ in ceilings 10 mm"},{"$f":"M4","v":0},{"$f":"N4","v":0.15},null,null,null,null,74,"Air gaps/ in ceilings 10 mm","Cámaras de Aire/Techos 10 mm","Lame d'air/Toiture 10 mm",null,0.15]
[null,{"$f":"INDEX(J5:L5,U_Calculation!$AD$2)","v":"Air gaps/ in ceilings 100 mm"},0,0.16,null,null,null,null,78,"Air gaps/ in ceilings 100 mm","Cámaras de Aire/Techos 100 mm","Lame d'air/Toiture 100 mm",null,0.16]
[null,{"$f":"INDEX(J6:L6,U_Calculation!$AD$2)","v":"Air gaps/ in ceilings 15 mm"},0,0.16,null,null,null,null,75,"Air gaps/ in ceilings 15 mm","Cámaras de Aire/Techos 15 mm","Lame d'air/Toiture 15 mm",null,0.16]
[null,{"$f":"INDEX(J7:L7,U_Calculation!$AD$2)","v":"Air gaps/ in ceilings 25 mm"},0,0.16,null,null,null,null,76,"Air gaps/ in ceilings 25 mm","Cámaras de Aire/Techos 25 mm","Lame d'air/Toiture 25 mm",null,0.16]
[null,{"$f":"INDEX(J8:L8,U_Calculation!$AD$2)","v":"Air gaps/ in ceilings 300 mm"},0,0.16,null,null,null,null,79,"Air gaps/ in ceilings 300 mm","Cámaras de Aire/Techos 300 mm","Lame d'air/Toiture 300 mm",null,0.16]
[null,{"$f":"INDEX(J9:L9,U_Calculation!$AD$2)","v":"Air gaps/ in ceilings 5 mm"},0,0.11,null,null,null,null,72,"Air gaps/ in ceilings 5 mm","Cámaras de Aire/Techos 5 mm","Lame d'air/Toiture 5 mm",null,0.11]
[null,{"$f":"INDEX(J10:L10,U_Calculation!$AD$2)","v":"Air gaps/ in ceilings 50 mm"},0,0.16,null,null,null,null,77,"Air gaps/ in ceilings 50 mm","Cámaras de Aire/Techos 50 mm","Lame d'air/Toiture 50 mm",null,0.16]
[null,{"$f":"INDEX(J11:L11,U_Calculation!$AD$2)","v":"Air gaps/ in ceilings 7 mm"},0,0.13,null,null,null,null,73,"Air gaps/ in ceilings 7 mm","Cámaras de Aire/Techos 7 mm","Lame d'air/Toiture 7 mm",null,0.13]
[null,{"$f":"INDEX(J12:L12,U_Calculation!$AD$2)","v":"Air gaps/ in floors 10 mm"},0,0.115,null,null,null,null,66,"Air gaps/ in floors 10 mm","Cámaras de Aire/Suelos 10 mm","Lame d'air/sols 10 mm",null,0.115]
[null,{"$f":"INDEX(J13:L13,U_Calculation!$AD$2)","v":"Air gaps/ in floors 100 mm"},0,0.22,null,null,null,null,70,"Air gaps/ in floors 100 mm","Cámaras de Aire/Suelos 100 mm","Lame d'air/sols 100 mm",null,0.22]
[null,{"$f":"INDEX(J14:L14,U_Calculation!$AD$2)","v":"Air gaps/ in floors 15 mm"},0,0.17,null,null,null,null,67,"Air gaps/ in floors 15 mm","Cámaras de Aire/Suelos 15 mm","Lame d'air/sols 15 mm",null,0.17]
[null,{"$f":"INDEX(J15:L15,U_Calculation!$AD$2)","v":"Air gaps/ in floors 25 mm"},0,0.19,null,null,null,null,68,"Air gaps/ in floors 25 mm","Cámaras de Aire/Suelos 25 mm","Lame d'air/sols 25 mm",null,0.19]
[null,{"$f":"INDEX(J16:L16,U_Calculation!$AD$2)","v":"Air gaps/ in floors 300 mm"},0,0.23,null,null,null,null,71,"Air gaps/ in floors 300 mm","Cámaras de Aire/Suelos 300 mm","Lame d'air/sols 300 mm",null,0.23]
[null,{"$f":"INDEX(J17:L17,U_Calculation!$AD$2)","v":"Air gaps/ in floors 5 mm"},0,0.11,null,null,null,null,64,"Air gaps/ in floors 5 mm","Cámaras de Aire/Suelos 5 mm","Lame d'air/sols 5 mm",null,0.11]
[null,{"$f":"INDEX(J18:L18,U_Calculation!$AD$2)","v":"Air gaps/ in floors 50 mm"},0,0.21,null,null,null,null,69,"Air gaps/ in floors 50 mm","Cámaras de Aire/Suelos 50 mm","Lame d'air/sols 50 mm",null,0.21]
[null,{"$f":"INDEX(J19:L19,U_Calculation!$AD$2)","v":"Air gaps/ in floors 7 mm"},0,0.13,null,null,null,null,65,"Air gaps/ in floors 7 mm","Cámaras de Aire/Suelos 7 mm","Lame d'air/sols 7 mm",null,0.13]
[null,{"$f":"INDEX(J20:L20,U_Calculation!$AD$2)","v":"Air gaps/ in walls 10 mm"},0,0.15,null,null,null,null,58,"Air gaps/ in walls 10 mm","Cámaras de Aire/Paredes 10 mm","Lame d'air/Façades 10 mm",null,0.15]
[null,{"$f":"INDEX(J21:L21,U_Calculation!$AD$2)","v":"Air gaps/ in walls 100 mm"},0,0.18,null,null,null,null,62,"Air gaps/ in walls 100 mm","Cámaras de Aire/Paredes 100 mm","Lame d'air/Façades 100 mm",null,0.18]
[null,{"$f":"INDEX(J22:L22,U_Calculation!$AD$2)","v":"Air gaps/ in walls 15 mm"},0,0.17,null,null,null,null,59,"Air gaps/ in walls 15 mm","Cámaras de Aire/Paredes 15 mm","Lame d'air/Façades 15 mm",null,0.17]
[null,{"$f":"INDEX(J23:L23,U_Calculation!$AD$2)","v":"Air gaps/ in walls 25 mm"},0,0.18,null,null,null,null,60,"Air gaps/ in walls 25 mm","Cámaras de Aire/Paredes 25 mm","Lame d'air/Façades 25 mm",null,0.18]
[null,{"$f":"INDEX(J24:L24,U_Calculation!$AD$2)","v":"Air gaps/ in walls 300 mm"},0,0.18,null,null,null,null,63,"Air gaps/ in walls 300 mm","Cámaras de Aire/Paredes 300 mm","Lame d'air/Façades 300 mm",null,0.18]
[null,{"$f":"INDEX(J25:L25,U_Calculation!$AD$2)","v":"Air gaps/ in walls 5 mm"},0,0.11,null,null,null,null,56,"Air gaps/ in walls 5 mm","Cámaras de Aire/Paredes 5 mm","Lame d'air/Façades 5 mm",null,0.11]
[null,{"$f":"INDEX(J26:L26,U_Calculation!$AD$2)","v":"Air gaps/ in walls 50 mm"},0,0.18,null,null,null,null,61,"Air gaps/ in walls 50 mm","Cámaras de Aire/Paredes 50 mm","Lame d'air/Façades 50 mm",null,0.18]
[null,{"$f":"INDEX(J27:L27,U_Calculation!$AD$2)","v":"Air gaps/ in walls 7 mm"},0,0.13,null,null,null,null,57,"Air gaps/ in walls 7 mm","Cámaras de Aire/Paredes 7 mm","Lame d'air/Façades 7 mm",null,0.13]
[null,{"$f":"INDEX(J28:L28,U_Calculation!$AD$2)","v":"Alveolar flagstone/ -high 200 mm"},0,0.13999999999999987,null,null,null,null,240,"Alveolar flagstone/ -high 200 mm","Losas Alveolares/Sin capa de compresión -Canto 200 mm","Dalles alvéolées/sans couche de compression -Epaisseur 200 mm",null,0.13999999999999987]
[null,{"$f":"INDEX(J29:L29,U_Calculation!$AD$2)","v":"Alveolar flagstone/ -high 250 mm"},0,0.16,null,null,null,null,241,"Alveolar flagstone/ -high 250 mm","Losas Alveolares/Sin capa de compresión -Canto 250 mm","Dalles alvéolées/sans couche de compression -Epaisseur 250 mm",null,0.16]
[null,{"$f":"INDEX(J30:L30,U_Calculation!$AD$2)","v":"Alveolar flagstone/ -high 300 mm"},0,0.19000000000000031,null,null,null,null,242,"Alveolar flagstone/ -high 300 mm","Losas Alveolares/Sin capa de compresión -Canto 300 mm","Dalles alvéolées/sans couche de compression -Epaisseur 300 mm",null,0.19000000000000031]
[null,{"$f":"INDEX(J31:L31,U_Calculation!$AD$2)","v":"Alveolar flagstone/ -high 350 mm"},0,0.20999999999999955,null,null,null,null,243,"Alveolar flagstone/ -high 350 mm","Losas Alveolares/Sin capa de compresión -Canto 350 mm","Dalles alvéolées/sans couche de compression -Epaisseur 350 mm",null,0.20999999999999955]
[null,{"$f":"INDEX(J32:L32,U_Calculation!$AD$2)","v":"Alveolar flagstone/ -high 400 mm"},0,0.21999999999999981,null,null,null,null,244,"Alveolar flagstone/ -high 400 mm","Losas Alveolares/Sin capa de compresión -Canto 400 mm","Dalles alvéolées/sans couche de compression -Epaisseur 400 mm",null,0.21999999999999981]
[null,{"$f":"INDEX(J33:L33,U_Calculation!$AD$2)","v":"Alveolar flagstone/ -high 500 mm"},0,0.25,null,null,null,null,245,"Alveolar flagstone/ -high 500 mm","Losas Alveolares/Sin capa de compresión -Canto 500 mm","Dalles alvéolées/sans couche de compression -Epaisseur 500 mm",null,0.25]
[null,{"$f":"INDEX(J34:L34,U_Calculation!$AD$2)","v":"Alveolar flagstone/ with upper concrete layer -High 200 mm"},0,0.13999999999999987,null,null,null,null,86,"Alveolar flagstone/ with upper concrete layer -High 200 mm","Losas Alveolares/Con capa de compresión -Canto 200 mm","Dalles alvéolées/avec couche de compression -Epaisseur 200 mm",null,0.13999999999999987]
[null,{"$f":"INDEX(J35:L35,U_Calculation!$AD$2)","v":"Alveolar flagstone/ with upper concrete layer -High 250 mm"},0,0.16,null,null,null,null,87,"Alveolar flagstone/ with upper concrete layer -High 250 mm","Losas Alveolares/Con capa de compresión -Canto 250 mm","Dalles alvéolées/avec couche de compression -Epaisseur 250 mm",null,0.16]
[null,{"$f":"INDEX(J36:L36,U_Calculation!$AD$2)","v":"Alveolar flagstone/ with upper concrete layer -High 300 mm"},0,0.19000000000000031,null,null,null,null,88,"Alveolar flagstone/ with upper concrete layer -High 300 mm","Losas Alveolares/Con capa de compresión -Canto 300 mm","Dalles alvéolées/avec couche de compression -Epaisseur 300 mm",null,0.19000000000000031]
[null,{"$f":"INDEX(J37:L37,U_Calculation!$AD$2)","v":"Alveolar flagstone/ with upper concrete layer -High 350 mm"},0,0.20999999999999955,null,null,null,null,89,"Alveolar flagstone/ with upper concrete layer -High 350 mm","Losas Alveolares/Con capa de compresión -Canto 350 mm","Dalles alvéolées/avec couche de compression -Epaisseur 350 mm",null,0.20999999999999955]
[null,{"$f":"INDEX(J38:L38,U_Calculation!$AD$2)","v":"Alveolar flagstone/ with upper concrete layer -High 400 mm"},0,0.21999999999999981,null,null,null,null,90,"Alveolar flagstone/ with upper concrete layer -High 400 mm","Losas Alveolares/Con capa de compresión -Canto 400 mm","Dalles alvéolées/avec couche de compression -Epaisseur 400 mm",null,0.21999999999999981]
[null,{"$f":"INDEX(J39:L39,U_Calculation!$AD$2)","v":"Alveolar flagstone/ with upper concrete layer -High 500 mm"},0,0.25,null,null,null,null,91,"Alveolar flagstone/ with upper concrete layer -High 500 mm","Losas Alveolares/Con capa de compresión -Canto 500 mm","Dalles alvéolées/avec couche de compression -Epaisseur 500 mm",null,0.25]
[null,{"$f":"INDEX(J40:L40,U_Calculation!$AD$2)","v":"Concrete/Artificial stone, terrazzo"},1.3,0,null,null,null,null,202,"Concrete/Artificial stone, terrazzo","Hormigón/Piedra artificial","Béton/ Pierre artificielle",1.3]
[null,{"$f":"INDEX(J41:L41,U_Calculation!$AD$2)","v":"Concrete/Concrete 2000 < d < 2300"},1.65,0,null,null,null,null,176,"Concrete/Concrete 2000 < d < 2300","Hormigón/en masa 2000 < d < 2300","Béton/non armé 2000 < d < 2300",1.65]
[null,{"$f":"INDEX(J42:L42,U_Calculation!$AD$2)","v":"Concrete/Concrete 2300 < d < 2600"},2,0,null,null,null,null,177,"Concrete/Concrete 2300 < d < 2600","Hormigón/en masa 2300 < d < 2600","Béton/non armé 2300 < d < 2600",2]
[null,{"$f":"INDEX(J43:L43,U_Calculation!$AD$2)","v":"Concrete/Light concrete 1600 < d < 1800"},1.1499999999999999,0,null,null,null,null,174,"Concrete/Light concrete 1600 < d < 1800","Hormigón/con áridos ligeros 1600 < d < 1800","Béton/avec granulats légers 1600 < d < 1800",1.1499999999999999]
[null,{"$f":"INDEX(J44:L44,U_Calculation!$AD$2)","v":"Concrete/Light concrete 1800 < d < 2000"},1.35,0,null,null,null,null,175,"Concrete/Light concrete 1800 < d < 2000","Hormigón/con áridos ligeros 1800 < d < 2000","Béton/avec granulats légers 1800 < d < 2000",1.35]
[null,{"$f":"INDEX(J45:L45,U_Calculation!$AD$2)","v":"Concrete/Reinforced concrete 2300 < d < 2500"},2.2999999999999998,0,null,null,null,null,172,"Concrete/Reinforced concrete 2300 < d < 2500","Hormigón/armado 2300 < d < 2500","Béton/armé 2300 < d < 2500",2.2999999999999998]
[null,{"$f":"INDEX(J46:L46,U_Calculation!$AD$2)","v":"Concrete/Reinforced concrete d > 2500"},2.5,0,null,null,null,null,173,"Concrete/Reinforced concrete d > 2500","Hormigón/armado d > 2500","Béton/armé d > 2500",2.5]
[null,{"$f":"INDEX(J47:L47,U_Calculation!$AD$2)","v":"Floor coverings/Carpet, textile flooring"},0.06,0,null,null,null,null,181,"Floor coverings/Carpet, textile flooring","Revestimientos suelo/Moquetas, revestimientos textiles","Revêtement sol/Moquette, revêtement textile",0.06]
[null,{"$f":"INDEX(J48:L48,U_Calculation!$AD$2)","v":"Floor coverings/Ceramic tile"},1.3,0,null,null,null,null,23,"Floor coverings/Ceramic tile","Revestimientos suelo/Azulejo cerámico","Revêtement sol/Carrelage céramique",1.3]
[null,{"$f":"INDEX(J49:L49,U_Calculation!$AD$2)","v":"Floor coverings/Ceramic tile (flooring)"},1,0,null,null,null,null,208,"Floor coverings/Ceramic tile (flooring)","Revestimientos suelo/Plaqueta o baldosa cerámica","Revêtement sol/Sol céramique",1]
[null,{"$f":"INDEX(J50:L50,U_Calculation!$AD$2)","v":"Floor coverings/Floating floor felt"},0.05,0,null,null,null,null,247,"Floor coverings/Floating floor felt","Revestimientos suelo/Subcapa, fieltro","Revêtement sol/Sous couche Feltre",0.05]
[null,{"$f":"INDEX(J51:L51,U_Calculation!$AD$2)","v":"Floor coverings/Floating floor wool"},0.06,0,null,null,null,null,248,"Floor coverings/Floating floor wool","Revestimientos suelo/Subcapa, lana","Revêtement sol/sous couche laine",0.06]
[null,{"$f":"INDEX(J52:L52,U_Calculation!$AD$2)","v":"Floor coverings/Stoneware tile"},2.2999999999999998,0,null,null,null,null,209,"Floor coverings/Stoneware tile","Revestimientos suelo/Plaqueta o baldosa de gres","Revêtement sol/Carrelage de grès",2.2999999999999998]
[null,{"$f":"INDEX(J53:L53,U_Calculation!$AD$2)","v":"Floor slab/ (bidirectional) ceramic lightening blocks- High 250 mm "},0,0.14999999999999969,null,null,null,null,140,"Floor slab/ (bidirectional) ceramic lightening blocks- High 250 mm ","Forjados de techo/Reticular FR Entrevigado cerámico -Canto 250 mm ","Dalles plafond/Bidirectionnel Entrevous céramique-Epaisseur 250 mm ",null,0.14999999999999969]
[null,{"$f":"INDEX(J54:L54,U_Calculation!$AD$2)","v":"Floor slab/ (bidirectional) ceramic lightening blocks- High 300 mm "},0,0.17999999999999963,null,null,null,null,116,"Floor slab/ (bidirectional) ceramic lightening blocks- High 300 mm ","Forjados de techo/Reticular Entrevigado cerámico -Canto 300 mm ","Dalles plafond/Bidirectionnel Entrevous céramique-Epaisseur 300 mm ",null,0.17999999999999963]
[null,{"$f":"INDEX(J55:L55,U_Calculation!$AD$2)","v":"Floor slab/ (bidirectional) ceramic lightening blocks- High 350 mm "},0,0.19999999999999998,null,null,null,null,117,"Floor slab/ (bidirectional) ceramic lightening blocks- High 350 mm ","Forjados de techo/Reticular Entrevigado cerámico -Canto 350 mm ","Dalles plafond/Bidirectionnel Entrevous céramique-Epaisseur 350 mm ",null,0.19999999999999998]
[null,{"$f":"INDEX(J56:L56,U_Calculation!$AD$2)","v":"Floor slab/ (bidirectional) concrete lightening blocks- High 250 mm"},0,0.1300000000000002,null,null,null,null,130,"Floor slab/ (bidirectional) concrete lightening blocks- High 250 mm","Forjados de techo/Reticular Entrevigado de hormigón  -Canto 250 mm","Dalles plafond/Bidirectionnel Entrevous béton  -Epaisseur 250 mm",null,0.1300000000000002]
[null,{"$f":"INDEX(J57:L57,U_Calculation!$AD$2)","v":"Floor slab/ (bidirectional) concrete lightening blocks- High 300 mm"},0,0.15,null,null,null,null,131,"Floor slab/ (bidirectional) concrete lightening blocks- High 300 mm","Forjados de techo/Reticular Entrevigado de hormigón  -Canto 300 mm","Dalles plafond/Bidirectionnel Entrevous béton  -Epaisseur 300 mm",null,0.15]
[null,{"$f":"INDEX(J58:L58,U_Calculation!$AD$2)","v":"Floor slab/ (bidirectional) concrete lightening blocks- High 350 mm"},0,0.18000000000000041,null,null,null,null,132,"Floor slab/ (bidirectional) concrete lightening blocks- High 350 mm","Forjados de techo/Reticular Entrevigado de hormigón  -Canto 350 mm","Dalles plafond/Bidirectionnel Entrevous béton  -Epaisseur 350 mm",null,0.18000000000000041]
[null,{"$f":"INDEX(J59:L59,U_Calculation!$AD$2)","v":"Floor slab/ (bidirectional) concrete lightening blocks- High 400 mm"},0,0.2,null,null,null,null,133,"Floor slab/ (bidirectional) concrete lightening blocks- High 400 mm","Forjados de techo/Reticular Entrevigado de hormigón  -Canto 400 mm","Dalles plafond/Bidirectionnel Entrevous béton  -Epaisseur 400 mm",null,0.2]
[null,{"$f":"INDEX(J60:L60,U_Calculation!$AD$2)","v":"Floor slab/ (bidirectional) concrete lightening blocks- High 450 mm"},0,0.21999999999999953,null,null,null,null,134,"Floor slab/ (bidirectional) concrete lightening blocks- High 450 mm","Forjados de techo/Reticular Entrevigado de hormigón  -Canto 450 mm","Dalles plafond/Bidirectionnel Entrevous béton  -Epaisseur 450 mm",null,0.21999999999999953]
[null,{"$f":"INDEX(J61:L61,U_Calculation!$AD$2)","v":"Floor slab/ (bidirectional) cut EPS lightening blocks (flush) -  High 400 mm "},0,0.30000000000000077,null,null,null,null,118,"Floor slab/ (bidirectional) cut EPS lightening blocks (flush) -  High 400 mm ","Forjados de techo/Reticular Entrevigado de EPS mecanizado enrasado - Canto 400 mm ","Dalles plafond/Bidirectionnel Entrevous EPS découpé (sans correction pont thermique) - Epaisseur 400 mm ",null,0.30000000000000077]
[null,{"$f":"INDEX(J62:L62,U_Calculation!$AD$2)","v":"Floor slab/ (bidirectional) cut EPS lightening blocks (flush) - High 300 mm "},0,0.22999999999999937,null,null,null,null,119,"Floor slab/ (bidirectional) cut EPS lightening blocks (flush) - High 300 mm ","Forjados de techo/Reticular Entrevigado de EPS mecanizado enrasado -Canto 300 mm ","Dalles plafond/Bidirectionnel Entrevous EPS découpé (sans correction pont thermique) -Epaisseur 300 mm ",null,0.22999999999999937]
[null,{"$f":"INDEX(J63:L63,U_Calculation!$AD$2)","v":"Floor slab/ (bidirectional) cut EPS lightening blocks (flush) - High 350 mm "},0,0.26999999999999919,null,null,null,null,120,"Floor slab/ (bidirectional) cut EPS lightening blocks (flush) - High 350 mm ","Forjados de techo/Reticular Entrevigado de EPS mecanizado enrasado -Canto 350 mm ","Dalles plafond/Bidirectionnel Entrevous EPS découpé (sans correction pont thermique) -Epaisseur 350 mm ",null,0.26999999999999919]
[null,{"$f":"INDEX(J64:L64,U_Calculation!$AD$2)","v":"Floor slab/ (bidirectional) cut EPS lightening blocks (flush) - High 450 mm"},0,0.33999999999999891,null,null,null,null,121,"Floor slab/ (bidirectional) cut EPS lightening blocks (flush) - High 450 mm","Forjados de techo/Reticular Entrevigado de EPS mecanizado enrasado -Canto 450 mm","Dalles plafond/Bidirectionnel Entrevous EPS découpé (sans correction pont thermique) -Epaisseur 450 mm",null,0.33999999999999891]
[null,{"$f":"INDEX(J65:L65,U_Calculation!$AD$2)","v":"Floor slab/ (bidirectional) light concrete lightening blocks -  High 450 mm"},0,0.23000000000000057,null,null,null,null,135,"Floor slab/ (bidirectional) light concrete lightening blocks -  High 450 mm","Forjados de techo/Reticular Entrevigado de hormigón aligerado - Canto 450 mm","Dalles plafond/Bidirectionnel Entrevous béton léger - Epaisseur 450 mm",null,0.23000000000000057]
[null,{"$f":"INDEX(J66:L66,U_Calculation!$AD$2)","v":"Floor slab/ (bidirectional) light concrete lightening blocks - High 250 mm "},0,0.13999999999999965,null,null,null,null,136,"Floor slab/ (bidirectional) light concrete lightening blocks - High 250 mm ","Forjados de techo/Reticular Entrevigado de hormigón aligerado -Canto 250 mm ","Dalles plafond/Bidirectionnel Entrevous béton léger -Epaisseur 250 mm ",null,0.13999999999999965]
[null,{"$f":"INDEX(J67:L67,U_Calculation!$AD$2)","v":"Floor slab/ (bidirectional) light concrete lightening blocks - High 300 mm "},0,0.16,null,null,null,null,137,"Floor slab/ (bidirectional) light concrete lightening blocks - High 300 mm ","Forjados de techo/Reticular Entrevigado de hormigón aligerado -Canto 300 mm ","Dalles plafond/Bidirectionnel Entrevous béton léger -Epaisseur 300 mm ",null,0.16]
[null,{"$f":"INDEX(J68:L68,U_Calculation!$AD$2)","v":"Floor slab/ (bidirectional) light concrete lightening blocks - High 350 mm "},{"$f":"M68","v":0},{"$f":"N68","v":0.19000000000000047},null,null,null,null,138,"Floor slab/ (bidirectional) light concrete lightening blocks - High 350 mm ","Forjados de techo/Reticular Entrevigado de hormigón aligerado -Canto 350 mm ","Dalles plafond/Bidirectionnel Entrevous béton léger -Epaisseur 350 mm ",null,0.19000000000000047]
[null,{"$f":"INDEX(J69:L69,U_Calculation!$AD$2)","v":"Floor slab/ (bidirectional) light concrete lightening blocks - High 400 mm "},0,0.21000000000000055,null,null,null,null,139,"Floor slab/ (bidirectional) light concrete lightening blocks - High 400 mm ","Forjados de techo/Reticular Entrevigado de hormigón aligerado -Canto 400 mm ","Dalles plafond/Bidirectionnel Entrevous béton léger -Epaisseur 400 mm ",null,0.21000000000000055]
[null,{"$f":"INDEX(J70:L70,U_Calculation!$AD$2)","v":"Floor slab/ (bidirectional) moulded EPS lightening blocks (flush) - High 300 mm "},0,0.22000000000000058,null,null,null,null,126,"Floor slab/ (bidirectional) moulded EPS lightening blocks (flush) - High 300 mm ","Forjados de techo/Reticular Entrevigado de EPS moldeado enrasado  -Canto 300 mm ","Dalles plafond/Bidirectionnel Entrevous EPS moulé (sans correction pont thermique)  -Epaisseur 300 mm ",null,0.22000000000000058]
[null,{"$f":"INDEX(J71:L71,U_Calculation!$AD$2)","v":"Floor slab/ (bidirectional) moulded EPS lightening blocks (flush) - High 350 mm "},0,0.25,null,null,null,null,127,"Floor slab/ (bidirectional) moulded EPS lightening blocks (flush) - High 350 mm ","Forjados de techo/Reticular Entrevigado de EPS moldeado enrasado -Canto 350 mm ","Dalles plafond/Bidirectionnel Entrevous EPS moulé (sans correction pont thermique) -Epaisseur 350 mm ",null,0.25]
[null,{"$f":"INDEX(J72:L72,U_Calculation!$AD$2)","v":"Floor slab/ (bidirectional) moulded EPS lightening blocks (flush) - High 400 mm"},0,0.2899999999999992,null,null,null,null,128,"Floor slab/ (bidirectional) moulded EPS lightening blocks (flush) - High 400 mm","Forjados de techo/Reticular Entrevigado de EPS moldeado enrasado -Canto 400 mm","Dalles plafond/Bidirectionnel Entrevous EPS moulé (sans correction pont thermique) -Epaisseur 400 mm",null,0.2899999999999992]
[null,{"$f":"INDEX(J73:L73,U_Calculation!$AD$2)","v":"Floor slab/ (bidirectional) moulded EPS lightening blocks (flush) - High 450 mm"},0,0.32,null,null,null,null,129,"Floor slab/ (bidirectional) moulded EPS lightening blocks (flush) - High 450 mm","Forjados de techo/Reticular Entrevigado de EPS moldeado enrasado -Canto 450 mm","Dalles plafond/Bidirectionnel Entrevous EPS moulé (sans correction pont thermique) -Epaisseur 450 mm",null,0.32]
[null,{"$f":"INDEX(J74:L74,U_Calculation!$AD$2)","v":"Floor slab/ (bidirectional) moulded EPS lightening blocks (off hook) - High 300 mm"},0,0.8400000000000003,null,null,null,null,122,"Floor slab/ (bidirectional) moulded EPS lightening blocks (off hook) - High 300 mm","Forjados de techo/Reticular Entrevigado de EPS moldeado descolgado -Canto 300 mm","Dalles plafond/Bidirectionnel Entrevous EPS moulé (avec correction pont thermique) -Epaisseur 300 mm",null,0.8400000000000003]
[null,{"$f":"INDEX(J75:L75,U_Calculation!$AD$2)","v":"Floor slab/ (bidirectional) moulded EPS lightening blocks (off hook) - High 350 mm"},0,0.86999999999999922,null,null,null,null,123,"Floor slab/ (bidirectional) moulded EPS lightening blocks (off hook) - High 350 mm","Forjados de techo/Reticular Entrevigado de EPS moldeado descolgado -Canto 350 mm","Dalles plafond/Bidirectionnel Entrevous EPS moulé (avec correction pont thermique) -Epaisseur 350 mm",null,0.86999999999999922]
[null,{"$f":"INDEX(J76:L76,U_Calculation!$AD$2)","v":"Floor slab/ (bidirectional) moulded EPS lightening blocks (off hook) - High 400 mm"},0,0.90999999999999914,null,null,null,null,124,"Floor slab/ (bidirectional) moulded EPS lightening blocks (off hook) - High 400 mm","Forjados de techo/Reticular Entrevigado de EPS moldeado descolgado -Canto 400 mm","Dalles plafond/Bidirectionnel Entrevous EPS moulé (avec correction pont thermique) -Epaisseur 400 mm",null,0.90999999999999914]
[null,{"$f":"INDEX(J77:L77,U_Calculation!$AD$2)","v":"Floor slab/ (bidirectional) moulded EPS lightening blocks (off hook) - High 450 mm"},0,0.94000000000000028,null,null,null,null,125,"Floor slab/ (bidirectional) moulded EPS lightening blocks (off hook) - High 450 mm","Forjados de techo/Reticular Entrevigado de EPS moldeado descolgado -Canto 450 mm","Dalles plafond/Bidirectionnel Entrevous EPS moulé (avec correction pont thermique) -Epaisseur 450 mm",null,0.94000000000000028]
[null,{"$f":"INDEX(J78:L78,U_Calculation!$AD$2)","v":"Floor slab/ (bidirectional) without lightening blocks - High 250 mm"},0,5.9999999999999956E-2,null,null,null,null,141,"Floor slab/ (bidirectional) without lightening blocks - High 250 mm","Forjados de techo/Reticular Sin Entrevigado -Canto 250 mm","Dalles plafond/Bidirectionnel Sans Entrevous -Epaisseur 250 mm",null,5.9999999999999956E-2]
[null,{"$f":"INDEX(J79:L79,U_Calculation!$AD$2)","v":"Floor slab/ (bidirectional) without lightening blocks - High 300 mm"},0,6.9999999999999923E-2,null,null,null,null,142,"Floor slab/ (bidirectional) without lightening blocks - High 300 mm","Forjados de techo/Reticular Sin Entrevigado -Canto 300 mm","Dalles plafond/Bidirectionnel Sans Entrevous -Epaisseur 300 mm",null,6.9999999999999923E-2]
[null,{"$f":"INDEX(J80:L80,U_Calculation!$AD$2)","v":"Floor slab/ (bidirectional) without lightening blocks - High 350 mm"},0,0.08,null,null,null,null,143,"Floor slab/ (bidirectional) without lightening blocks - High 350 mm","Forjados de techo/Reticular Sin Entrevigado -Canto 350 mm","Dalles plafond/Bidirectionnel Sans Entrevous -Epaisseur 350 mm",null,0.08]
[null,{"$f":"INDEX(J81:L81,U_Calculation!$AD$2)","v":"Floor slab/ (unidirectional) ceramic lightening blocks- High 250 mm"},0,0.27999999999999997,null,null,null,null,149,"Floor slab/ (unidirectional) ceramic lightening blocks- High 250 mm","Forjados de techo/Unidireccional Entrevigado cerámico -Canto 250 mm","Dalles plafond/Unidirectionnel Entrevous céramique-Epaisseur 250 mm",null,0.27999999999999997]
[null,{"$f":"INDEX(J82:L82,U_Calculation!$AD$2)","v":"Floor slab/ (unidirectional) ceramic lightening blocks- High 300 mm"},0,0.32,null,null,null,null,150,"Floor slab/ (unidirectional) ceramic lightening blocks- High 300 mm","Forjados de techo/Unidireccional Entrevigado cerámico -Canto 300 mm","Dalles plafond/Unidirectionnel Entrevous céramique-Epaisseur 300 mm",null,0.32]
[null,{"$f":"INDEX(J83:L83,U_Calculation!$AD$2)","v":"Floor slab/ (unidirectional) ceramic lightening blocks- High 350 mm"},0,0.35,null,null,null,null,151,"Floor slab/ (unidirectional) ceramic lightening blocks- High 350 mm","Forjados de techo/Unidireccional Entrevigado cerámico -Canto 350 mm","Dalles plafond/Unidirectionnel Entrevous céramique-Epaisseur 350 mm",null,0.35]
[null,{"$f":"INDEX(J84:L84,U_Calculation!$AD$2)","v":"Floor slab/ (unidirectional) concrete lightening blocks- High 250 mm"},0,0.19000000000000009,null,null,null,null,161,"Floor slab/ (unidirectional) concrete lightening blocks- High 250 mm","Forjados de techo/Unidireccional Entrevigado de hormigón  -Canto 250 mm","Dalles plafond/Unidirectionnel Entrevous béton  -Epaisseur 250 mm",null,0.19000000000000009]
[null,{"$f":"INDEX(J85:L85,U_Calculation!$AD$2)","v":"Floor slab/ (unidirectional) concrete lightening blocks- High 300 mm"},0,0.2099999999999998,null,null,null,null,162,"Floor slab/ (unidirectional) concrete lightening blocks- High 300 mm","Forjados de techo/Unidireccional Entrevigado de hormigón  -Canto 300 mm","Dalles plafond/Unidirectionnel Entrevous béton  -Epaisseur 300 mm",null,0.2099999999999998]
[null,{"$f":"INDEX(J86:L86,U_Calculation!$AD$2)","v":"Floor slab/ (unidirectional) concrete lightening blocks- High 350 mm"},0,0.23000000000000037,null,null,null,null,163,"Floor slab/ (unidirectional) concrete lightening blocks- High 350 mm","Forjados de techo/Unidireccional Entrevigado de hormigón  -Canto 350 mm","Dalles plafond/Unidirectionnel Entrevous béton  -Epaisseur 350 mm",null,0.23000000000000037]
[null,{"$f":"INDEX(J87:L87,U_Calculation!$AD$2)","v":"Floor slab/ (unidirectional) cut EPS lightening blocks (flush) - High 250 mm"},0,0.93999999999999861,null,null,null,null,152,"Floor slab/ (unidirectional) cut EPS lightening blocks (flush) - High 250 mm","Forjados de techo/Unidireccional Entrevigado de EPS mecanizado enrasado -Canto 250 mm","Dalles plafond/Unidirectionnel Entrevous EPS découpé (sans correction pont thermique) -Epaisseur 250 mm",null,0.93999999999999861]
[null,{"$f":"INDEX(J88:L88,U_Calculation!$AD$2)","v":"Floor slab/ (unidirectional) cut EPS lightening blocks (flush) - High 300 mm"},0,1.1700000000000019,null,null,null,null,153,"Floor slab/ (unidirectional) cut EPS lightening blocks (flush) - High 300 mm","Forjados de techo/Unidireccional Entrevigado de EPS mecanizado enrasado -Canto 300 mm","Dalles plafond/Unidirectionnel Entrevous EPS découpé (sans correction pont thermique) -Epaisseur 300 mm",null,1.1700000000000019]
[null,{"$f":"INDEX(J89:L89,U_Calculation!$AD$2)","v":"Floor slab/ (unidirectional) cut EPS lightening blocks (flush) - High 350 mm"},0,1.3700000000000028,null,null,null,null,154,"Floor slab/ (unidirectional) cut EPS lightening blocks (flush) - High 350 mm","Forjados de techo/Unidireccional Entrevigado de EPS mecanizado enrasado -Canto 350 mm","Dalles plafond/Unidirectionnel Entrevous EPS découpé (sans correction pont thermique) -Epaisseur 350 mm",null,1.3700000000000028]
[null,{"$f":"INDEX(J90:L90,U_Calculation!$AD$2)","v":"Floor slab/ (unidirectional) light concrete lightening blocks -  High 400 mm"},0,0.29500000000000015,null,null,null,null,164,"Floor slab/ (unidirectional) light concrete lightening blocks -  High 400 mm","Forjados de techo/Unidireccional Entrevigado de hormigón aligerado - Canto 400 mm","Dalles plafond/Unidirectionnel Entrevous béton léger - Epaisseur 400 mm",null,0.29500000000000015]
[null,{"$f":"INDEX(J91:L91,U_Calculation!$AD$2)","v":"Floor slab/ (unidirectional) light concrete lightening blocks - High 250 mm"},0,0.23500000000000054,null,null,null,null,165,"Floor slab/ (unidirectional) light concrete lightening blocks - High 250 mm","Forjados de techo/Unidireccional Entrevigado de hormigón aligerado -Canto 250 mm","Dalles plafond/Unidirectionnel Entrevous béton léger -Epaisseur 250 mm",null,0.23500000000000054]
[null,{"$f":"INDEX(J92:L92,U_Calculation!$AD$2)","v":"Floor slab/ (unidirectional) light concrete lightening blocks - High 300 mm"},0,0.26000000000000084,null,null,null,null,166,"Floor slab/ (unidirectional) light concrete lightening blocks - High 300 mm","Forjados de techo/Unidireccional Entrevigado de hormigón aligerado -Canto 300 mm","Dalles plafond/Unidirectionnel Entrevous béton léger -Epaisseur 300 mm",null,0.26000000000000084]
[null,{"$f":"INDEX(J93:L93,U_Calculation!$AD$2)","v":"Floor slab/ (unidirectional) light concrete lightening blocks - High 350 mm"},0,0.28999999999999954,null,null,null,null,167,"Floor slab/ (unidirectional) light concrete lightening blocks - High 350 mm","Forjados de techo/Unidireccional Entrevigado de hormigón aligerado -Canto 350 mm","Dalles plafond/Unidirectionnel Entrevous béton léger -Epaisseur 350 mm",null,0.28999999999999954]
[null,{"$f":"INDEX(J94:L94,U_Calculation!$AD$2)","v":"Floor slab/ (unidirectional) moulded EPS lightening blocks (flush) - High 250 mm"},0,0.8,null,null,null,null,158,"Floor slab/ (unidirectional) moulded EPS lightening blocks (flush) - High 250 mm","Forjados de techo/Unidireccional Entrevigado de EPS moldeado enrasado -Canto 250 mm","Dalles plafond/Unidirectionnel Entrevous EPS moulé (sans correction pont thermique) -Epaisseur 250 mm",null,0.8]
[null,{"$f":"INDEX(J95:L95,U_Calculation!$AD$2)","v":"Floor slab/ (unidirectional) moulded EPS lightening blocks (flush) - High 300 mm"},0,0.87999999999999978,null,null,null,null,159,"Floor slab/ (unidirectional) moulded EPS lightening blocks (flush) - High 300 mm","Forjados de techo/Unidireccional Entrevigado de EPS moldeado enrasado -Canto 300 mm","Dalles plafond/Unidirectionnel Entrevous EPS moulé (sans correction pont thermique) -Epaisseur 300 mm",null,0.87999999999999978]
[null,{"$f":"INDEX(J96:L96,U_Calculation!$AD$2)","v":"Floor slab/ (unidirectional) moulded EPS lightening blocks (flush) - High 350 mm"},0,0.94999999999999984,null,null,null,null,160,"Floor slab/ (unidirectional) moulded EPS lightening blocks (flush) - High 350 mm","Forjados de techo/Unidireccional Entrevigado de EPS moldeado enrasado -Canto 350 mm","Dalles plafond/Unidirectionnel Entrevous EPS moulé (sans correction pont thermique) -Epaisseur 350 mm",null,0.94999999999999984]
[null,{"$f":"INDEX(J97:L97,U_Calculation!$AD$2)","v":"Floor slab/ (unidirectional) moulded EPS lightening blocks (off hook) - High 250 mm"},0,1.4200000000000002,null,null,null,null,155,"Floor slab/ (unidirectional) moulded EPS lightening blocks (off hook) - High 250 mm","Forjados de techo/Unidireccional Entrevigado de EPS moldeado descolgado -Canto 250 mm","Dalles plafond/Unidirectionnel Entrevous EPS moulé (avec correction pont thermique) -Epaisseur 250 mm",null,1.4200000000000002]
[null,{"$f":"INDEX(J98:L98,U_Calculation!$AD$2)","v":"Floor slab/ (unidirectional) moulded EPS lightening blocks (off hook) - High 300 mm"},0,1.4999999999999998,null,null,null,null,156,"Floor slab/ (unidirectional) moulded EPS lightening blocks (off hook) - High 300 mm","Forjados de techo/Unidireccional Entrevigado de EPS moldeado descolgado -Canto 300 mm","Dalles plafond/Unidirectionnel Entrevous EPS moulé (avec correction pont thermique) -Epaisseur 300 mm",null,1.4999999999999998]
[null,{"$f":"INDEX(J99:L99,U_Calculation!$AD$2)","v":"Floor slab/ (unidirectional) moulded EPS lightening blocks (off hook) - High 350 mm"},0,1.5700000000000034,null,null,null,null,157,"Floor slab/ (unidirectional) moulded EPS lightening blocks (off hook) - High 350 mm","Forjados de techo/Unidireccional Entrevigado de EPS moldeado descolgado -Canto 350 mm","Dalles plafond/Unidirectionnel Entrevous EPS moulé (avec correction pont thermique) -Epaisseur 350 mm",null,1.5700000000000034]
[null,{"$f":"INDEX(J100:L100,U_Calculation!$AD$2)","v":"Glass/Floating glass"},1,0,null,null,null,null,246,"Glass/Floating glass","Vidrio/Sodocálcico [inc. Vidrio flotado]","Verre/Sodocálcique [inc. Floating glass]",1]
[null,{"$f":"INDEX(J101:L101,U_Calculation!$AD$2)","v":"Glass/Glass"},1.2,0,null,null,null,null,290,"Glass/Glass","Vidrio/Vidrio prensado","Verre/Verre compressé",1.2]
[null,{"$f":"INDEX(J102:L102,U_Calculation!$AD$2)","v":"Gypsum/Fibber gypsum board 800 < d < 1000"},0.25,0,null,null,null,null,207,"Gypsum/Fibber gypsum board 800 < d < 1000","Yeso/Placas de yeso armado con fibras minerales 800 < d < 1000","Plâtre/Plaque de plâtre avec fibres minérales 800 < d < 1000",0.25]
[null,{"$f":"INDEX(J103:L103,U_Calculation!$AD$2)","v":"Gypsum/Gypsum board 750 < d < 900"},0.25,0,null,null,null,null,204,"Gypsum/Gypsum board 750 < d < 900","Yeso/Placa de yeso laminado [PYL] 750 < d < 900","Plâtre/Plaque de plâtre [BA] 750 < d < 900",0.25]
[null,{"$f":"INDEX(J104:L104,U_Calculation!$AD$2)","v":"Gypsum/Gypsum brick 750 < d < 900"},0.25,0,null,null,null,null,205,"Gypsum/Gypsum brick 750 < d < 900","Yeso/Placa de yeso o escayola 750 < d < 900","Plâtre/Carreau de plâtre 750 < d < 900",0.25]
[null,{"$f":"INDEX(J105:L105,U_Calculation!$AD$2)","v":"Insulation/Board  [EPB] [>80%]"},6.2E-2,0,null,null,null,null,197,"Insulation/Board  [EPB] [>80%]","Aislantes/Panel de perlita expandida  [EPB] [>80%]","Isolants/Panneau perlite expansée  [EPB] [>80%]",6.2E-2]
[null,{"$f":"INDEX(J106:L106,U_Calculation!$AD$2)","v":"Insulation/Board [CG]"},0.05,0,null,null,null,null,198,"Insulation/Board [CG]","Aislantes/Panel de vidrio celular [CG]","Isolants/Panneau verre cellulaire [CG]",0.05]
[null,{"$f":"INDEX(J107:L107,U_Calculation!$AD$2)","v":"Insulation/Board [cork]"},6.5000000000000002E-2,0,null,null,null,null,206,"Insulation/Board [cork]","Aislantes/Placas de corcho","Isolants/Panneau en liège",6.5000000000000002E-2]
[null,{"$f":"INDEX(J108:L108,U_Calculation!$AD$2)","v":"Insulation/Elastomeric foam"},0.05,0,null,null,null,null,112,"Insulation/Elastomeric foam","Aislantes/Espuma elastomérica-flexible","Isolants/Mousse elastomérique-flexible",0.05]
[null,{"$f":"INDEX(J109:L109,U_Calculation!$AD$2)","v":"Insulation/EPS  [ 0.029 W/[mK]]"},2.9000000000000001E-2,0,null,null,null,null,106,"Insulation/EPS  [ 0.029 W/[mK]]","Aislantes/EPS Poliestireno Expandido [ 0.029 W/[mK]]","Isolants/EPS polystyrène expansé [ 0.029 W/[mK]]",2.9000000000000001E-2]
[null,{"$f":"INDEX(J110:L110,U_Calculation!$AD$2)","v":"Insulation/EPS  [ 0.037 W/[mK]]"},3.7499999999999999E-2,0,null,null,null,null,107,"Insulation/EPS  [ 0.037 W/[mK]]","Aislantes/EPS Poliestireno Expandido [ 0.037 W/[mK]]","Isolants/EPS polystyrène expansé [ 0.037 W/[mK]]",3.7499999999999999E-2]
[null,{"$f":"INDEX(J111:L111,U_Calculation!$AD$2)","v":"Insulation/EPS  [ 0.046 W/[mK]]"},4.5999999999999999E-2,0,null,null,null,null,108,"Insulation/EPS  [ 0.046 W/[mK]]","Aislantes/EPS Poliestireno Expandido [ 0.046 W/[mK]]","Isolants/EPS polystyrène expansé [ 0.046 W/[mK]]",4.5999999999999999E-2]
[null,{"$f":"INDEX(J112:L112,U_Calculation!$AD$2)","v":"Insulation/Expanded clay [not glued]"},0.14799999999999999,0,null,null,null,null,15,"Insulation/Expanded clay [not glued]","Aislantes/Arcilla Expandida [árido suelto]","Isolants/Argile expansée [granulat]",0.14799999999999999]
[null,{"$f":"INDEX(J113:L113,U_Calculation!$AD$2)","v":"Insulation/Expanded cork 100 < d < 150"},4.9000000000000002E-2,0,null,null,null,null,97,"Insulation/Expanded cork 100 < d < 150","Aislantes/Corcho Expandido con resinas sintéticas 100 < d < 150","Isolants/Liège expansé avec liant synthétique 100 < d < 150",4.9000000000000002E-2]
[null,{"$f":"INDEX(J114:L114,U_Calculation!$AD$2)","v":"Insulation/Expanded cork 150 < d < 250"},5.5E-2,0,null,null,null,null,98,"Insulation/Expanded cork 150 < d < 250","Aislantes/Corcho Expandido con resinas sintéticas 150 < d < 250","Isolants/Liège expansé avec liant synthétique 150 < d < 250",5.5E-2]
[null,{"$f":"INDEX(J115:L115,U_Calculation!$AD$2)","v":"Insulation/MW [0.031 W/[mK]]"},3.1E-2,0,null,null,null,null,192,"Insulation/MW [0.031 W/[mK]]","Aislantes/MW Lana mineral [0.031 W/[mK]]","Isolants/MW Laine minérale [0.031 W/[mK]]",3.1E-2]
[null,{"$f":"INDEX(J116:L116,U_Calculation!$AD$2)","v":"Insulation/MW [0.04 W/[mK]]"},4.0500000000000001E-2,0,null,null,null,null,193,"Insulation/MW [0.04 W/[mK]]","Aislantes/MW Lana mineral [0.04 W/[mK]]","Isolants/MW Laine minérale [0.04 W/[mK]]",4.0500000000000001E-2]
[null,{"$f":"INDEX(J117:L117,U_Calculation!$AD$2)","v":"Insulation/MW [0.05 W/[mK]]"},0.05,0,null,null,null,null,194,"Insulation/MW [0.05 W/[mK]]","Aislantes/MW Lana mineral [0.05 W/[mK]]","Isolants/MW Laine minérale [0.05 W/[mK]]",0.05]
[null,{"$f":"INDEX(J118:L118,U_Calculation!$AD$2)","v":"Insulation/PE foam"},0.05,0,null,null,null,null,109,"Insulation/PE foam","Aislantes/Espuma de polietileno","Isolants/Mousse en polyéthylène",0.05]
[null,{"$f":"INDEX(J119:L119,U_Calculation!$AD$2)","v":"Insulation/PUR  board  HFC or Pentane expanded non air thigh facings [ 0.027 W/[mK]]"},2.7E-2,0,null,null,null,null,228,"Insulation/PUR  board  HFC or Pentane expanded non air thigh facings [ 0.027 W/[mK]]","Aislantes/PUR Plancha con HFC o Pentano y rev. permeable gases [ 0.027 W/[mK]]","Isolants/PUR Panneau expansée HFC ou Pentane avec revêtement perméable aux gaz [ 0.027 W/[mK]]",2.7E-2]
[null,{"$f":"INDEX(J120:L120,U_Calculation!$AD$2)","v":"Insulation/PUR  board  HFC or Pentane expanded non air thigh facings [ 0.03 W/[mK]]"},0.03,0,null,null,null,null,227,"Insulation/PUR  board  HFC or Pentane expanded non air thigh facings [ 0.03 W/[mK]]","Aislantes/PUR Plancha con  HFC o Pentano y rev. permeable a gases [ 0.03 W/[mK]]","Isolants/PUR Panneau expansée HFC ou Pentane avec revêtement perméable aux gaz [ 0.03 W/[mK]]",0.03]
[null,{"$f":"INDEX(J121:L121,U_Calculation!$AD$2)","v":"Insulation/PUR board  HFC or Pentane expanded air thigh facings [ 0.025 W/[mK]]"},2.5000000000000001E-2,0,null,null,null,null,226,"Insulation/PUR board  HFC or Pentane expanded air thigh facings [ 0.025 W/[mK]]","Aislantes/PUR Plancha con  HFC o Pentano y rev. impermeable a gases [ 0.025 W/[mK]]","Isolants/PUR Panneau expansée HFC ou Pentane avec revêtement non perméable aux gaz [ 0.025 W/[mK]]",2.5000000000000001E-2]
[null,{"$f":"INDEX(J122:L122,U_Calculation!$AD$2)","v":"Insulation/PUR foam"},0.05,0,null,null,null,null,110,"Insulation/PUR foam","Aislantes/Espuma de poliuretano [PU]","Isolants/Mousse polyuréthane [PU]",0.05]
[null,{"$f":"INDEX(J123:L123,U_Calculation!$AD$2)","v":"Insulation/PUR Injected CO2 expanded"},0.04,0,null,null,null,null,225,"Insulation/PUR Injected CO2 expanded","Aislantes/PUR Inyección en tabiquería con dióxido de carbono CO2","Isolants/PUR injection en paroi expansée au CO2",0.04]
[null,{"$f":"INDEX(J124:L124,U_Calculation!$AD$2)","v":"Insulation/PUR sprayed CO2 expanded close cells  [ 0.035 W/[mK]]"},3.5000000000000003E-2,0,null,null,null,null,230,"Insulation/PUR sprayed CO2 expanded close cells  [ 0.035 W/[mK]]","Aislantes/PUR Proyección con CO2 celda cerrada [ 0.035 W/[mK]]","Isolants/PUR projection expansée au CO2 cellules fermées [ 0.035 W/[mK]]",3.5000000000000003E-2]
[null,{"$f":"INDEX(J125:L125,U_Calculation!$AD$2)","v":"Insulation/PUR sprayed CO2 expanded close cells [ 0.032 W/[mK]]"},3.2000000000000001E-2,0,null,null,null,null,229,"Insulation/PUR sprayed CO2 expanded close cells [ 0.032 W/[mK]]","Aislantes/PUR Proyección con CO2 celda cerrada [ 0.032 W/[mK]]","Isolants/PUR projection expansée au CO2 cellules fermées [ 0.032 W/[mK]]",3.2000000000000001E-2]
[null,{"$f":"INDEX(J126:L126,U_Calculation!$AD$2)","v":"Insulation/PUR sprayed HFC expanded close cells [ 0.028 W/[mK]]"},2.8000000000000001E-2,0,null,null,null,null,231,"Insulation/PUR sprayed HFC expanded close cells [ 0.028 W/[mK]]","Aislantes/PUR Proyección con Hidrofluorcarbono HFC [ 0.028 W/[mK]]","Isolants/PUR projection expansée au HFC [ 0.028 W/[mK]]",2.8000000000000001E-2]
[null,{"$f":"INDEX(J127:L127,U_Calculation!$AD$2)","v":"Insulation/Pure expanded cork 100 < d < 150"},4.9000000000000002E-2,0,null,null,null,null,99,"Insulation/Pure expanded cork 100 < d < 150","Aislantes/Corcho Expandido puro 100 < d < 150","Isolants/Liège expansé pur 100 < d < 150",4.9000000000000002E-2]
[null,{"$f":"INDEX(J128:L128,U_Calculation!$AD$2)","v":"Insulation/Silicone foam"},0.12,0,null,null,null,null,111,"Insulation/Silicone foam","Aislantes/Espuma de silicona","Isolants/Mousse de silicone",0.12]
[null,{"$f":"INDEX(J129:L129,U_Calculation!$AD$2)","v":"Insulation/XPS CO2  expanded [ 0.038 W/[mK]]"},3.7999999999999999E-2,0,null,null,null,null,292,"Insulation/XPS CO2  expanded [ 0.038 W/[mK]]","Aislantes/XPS Expandido con dióxido de carbono CO3 [ 0.038 W/[mK]]","Isolants/XPS Expansée au CO2 [ 0.038 W/[mK]]",3.7999999999999999E-2]
[null,{"$f":"INDEX(J130:L130,U_Calculation!$AD$2)","v":"Insulation/XPS CO2 expanded [ 0.034 W/[mK]]"},3.4000000000000002E-2,0,null,null,null,null,291,"Insulation/XPS CO2 expanded [ 0.034 W/[mK]]","Aislantes/XPS Expansée au CO2 [ 0.034 W/[mK]]","Isolants/XPS Expansée au CO2 [ 0.034 W/[mK]]",3.4000000000000002E-2]
[null,{"$f":"INDEX(J131:L131,U_Calculation!$AD$2)","v":"Insulation/XPS CO2 expanded [ 0.042 W/[mK]]"},4.2000000000000003E-2,0,null,null,null,null,293,"Insulation/XPS CO2 expanded [ 0.042 W/[mK]]","Aislantes/XPS Expandido con dióxido de carbono CO4 [ 0.042 W/[mK]]","Isolants/XPS Expansée au CO2 [ 0.042 W/[mK]]",4.2000000000000003E-2]
[null,{"$f":"INDEX(J132:L132,U_Calculation!$AD$2)","v":"Insulation/XPS HFC expanded [ 0.025 W/[mK]]"},{"$f":"M132","v":2.5000000000000001E-2},{"$f":"N132","v":0},null,null,null,null,294,"Insulation/XPS HFC expanded [ 0.025 W/[mK]]","Aislantes/XPS Expansée au HFC [ 0.025 W/[mK]]","Isolants/XPS Expansée au HFC [ 0.025 W/[mK]]",2.5000000000000001E-2]
[null,{"$f":"INDEX(J133:L133,U_Calculation!$AD$2)","v":"Insulation/XPS HFC expanded [ 0.032 W/[mK]]"},3.2000000000000001E-2,0,null,null,null,null,295,"Insulation/XPS HFC expanded [ 0.032 W/[mK]]","Aislantes/XPS Expansée au HFC [ 0.032 W/[mK]]","Isolants/XPS Expansée au HFC [ 0.032 W/[mK]]",3.2000000000000001E-2]
[null,{"$f":"INDEX(J134:L134,U_Calculation!$AD$2)","v":"Insulation/XPS HFC expanded [ 0.039 W/[mK]]"},3.9E-2,0,null,null,null,null,296,"Insulation/XPS HFC expanded [ 0.039 W/[mK]]","Aislantes/XPS Expansée au HFC [ 0.039 W/[mK]]","Isolants/XPS Expansée au HFC [ 0.039 W/[mK]]",3.9E-2]
[null,{"$f":"INDEX(J135:L135,U_Calculation!$AD$2)","v":"Masonry blocks/Ceramic block with insulating mortar  thickness 140 mm"},0,0.44000000000000028,null,null,null,null,26,"Masonry blocks/Ceramic block with insulating mortar  thickness 140 mm","Blocs/Ceramique avec mortier isolant  epaisseur 140 mm","Blocs/Céramique avec mortier isolant  épaisseur 140 mm",null,0.44000000000000028]
[null,{"$f":"INDEX(J136:L136,U_Calculation!$AD$2)","v":"Masonry blocks/Ceramic block with insulating mortar  thickness 190 mm"},0,0.62999999999999912,null,null,null,null,27,"Masonry blocks/Ceramic block with insulating mortar  thickness 190 mm","Blocs/Ceramique avec mortier isolant  epaisseur 190 mm","Blocs/Céramique avec mortier isolant  épaisseur 190 mm",null,0.62999999999999912]
[null,{"$f":"INDEX(J137:L137,U_Calculation!$AD$2)","v":"Masonry blocks/Ceramic block with insulating mortar  thickness 240 mm"},0,0.81000000000000072,null,null,null,null,28,"Masonry blocks/Ceramic block with insulating mortar  thickness 240 mm","Blocs/Ceramique avec mortier isolant  epaisseur 240 mm","Blocs/Céramique avec mortier isolant  épaisseur 240 mm",null,0.81000000000000072]
[null,{"$f":"INDEX(J138:L138,U_Calculation!$AD$2)","v":"Masonry blocks/Ceramic block with insulating mortar  thickness 290 mm"},0,0.97999999999999921,null,null,null,null,29,"Masonry blocks/Ceramic block with insulating mortar  thickness 290 mm","Blocs/Ceramique avec mortier isolant  epaisseur 290 mm","Blocs/Céramique avec mortier isolant  épaisseur 290 mm",null,0.97999999999999921]
[null,{"$f":"INDEX(J139:L139,U_Calculation!$AD$2)","v":"Masonry blocks/Ceramic block with mortar  thickness 140 mm"},0,0.32,null,null,null,null,30,"Masonry blocks/Ceramic block with mortar  thickness 140 mm","Blocs/Cerámico Avec mortier standard  epaisseur 140 mm","Blocs/Céramique Avec mortier standard  épaisseur 140 mm",null,0.32]
[null,{"$f":"INDEX(J140:L140,U_Calculation!$AD$2)","v":"Masonry blocks/Ceramic block with mortar  thickness 190 mm"},0,0.43999999999999984,null,null,null,null,31,"Masonry blocks/Ceramic block with mortar  thickness 190 mm","Blocs/Cerámico Avec mortier standard  epaisseur 190 mm","Blocs/Céramique Avec mortier standard  épaisseur 190 mm",null,0.43999999999999984]
[null,{"$f":"INDEX(J141:L141,U_Calculation!$AD$2)","v":"Masonry blocks/Ceramic block with mortar  thickness 240 mm"},0,0.57000000000000051,null,null,null,null,32,"Masonry blocks/Ceramic block with mortar  thickness 240 mm","Blocs/Cerámico Avec mortier standard  epaisseur 240 mm","Blocs/Céramique Avec mortier standard  épaisseur 240 mm",null,0.57000000000000051]
[null,{"$f":"INDEX(J142:L142,U_Calculation!$AD$2)","v":"Masonry blocks/Ceramic block with mortar  thickness 290 mm"},0,0.68000000000000016,null,null,null,null,33,"Masonry blocks/Ceramic block with mortar  thickness 290 mm","Blocs/Cerámico Avec mortier standard  epaisseur 290 mm","Blocs/Céramique Avec mortier standard  épaisseur 290 mm",null,0.68000000000000016]
[null,{"$f":"INDEX(J143:L143,U_Calculation!$AD$2)","v":"Masonry blocks/Concrete block  thickness 200 mm"},0,0.22000000000000006,null,null,null,null,45,"Masonry blocks/Concrete block  thickness 200 mm","Blocs/Béton standardepaisseur 200 mm","Blocs/Béton standard épaisseur 200 mm",null,0.22000000000000006]
[null,{"$f":"INDEX(J144:L144,U_Calculation!$AD$2)","v":"Masonry blocks/Concrete block thickness 100 mm"},0,0.16,null,null,null,null,43,"Masonry blocks/Concrete block thickness 100 mm","Blocs/Béton standardepaisseur 100 mm","Blocs/Béton standard épaisseur 100 mm",null,0.16]
[null,{"$f":"INDEX(J145:L145,U_Calculation!$AD$2)","v":"Masonry blocks/Concrete block thickness 150 mm"},0,0.19000000000000006,null,null,null,null,44,"Masonry blocks/Concrete block thickness 150 mm","Blocs/Béton standardepaisseur 150 mm","Blocs/Béton standard épaisseur 150 mm",null,0.19000000000000006]
[null,{"$f":"INDEX(J146:L146,U_Calculation!$AD$2)","v":"Masonry blocks/Concrete block thickness 250 mm"},0,0.25,null,null,null,null,46,"Masonry blocks/Concrete block thickness 250 mm","Blocs/Béton standardepaisseur 250 mm","Blocs/Béton standard épaisseur 250 mm",null,0.25]
[null,{"$f":"INDEX(J147:L147,U_Calculation!$AD$2)","v":"Masonry blocks/Concrete block thickness 300 mm"},0,0.26000000000000084,null,null,null,null,47,"Masonry blocks/Concrete block thickness 300 mm","Blocs/Béton standardepaisseur 300 mm","Blocs/Béton standard épaisseur 300 mm",null,0.26000000000000084]
[null,{"$f":"INDEX(J148:L148,U_Calculation!$AD$2)","v":"Masonry blocks/Light Concrete block hollow -structuctural- thickness 300 mm"},0,0.6699999999999996,null,null,null,null,38,"Masonry blocks/Light Concrete block hollow -structuctural- thickness 300 mm","Blocs/Ceux en béton leger -porteur- epaisseur 300 mm","Blocs/Ceux en béton léger -porteur- épaisseur 300 mm",null,0.6699999999999996]
[null,{"$f":"INDEX(J149:L149,U_Calculation!$AD$2)","v":"Masonry blocks/Light Concrete block hollow thickness 250 mm"},0,0.53000000000000014,null,null,null,null,36,"Masonry blocks/Light Concrete block hollow thickness 250 mm","Blocs/Ceux en béton leger epaisseur 250 mm","Blocs/Ceux en béton léger épaisseur 250 mm",null,0.53000000000000014]
[null,{"$f":"INDEX(J150:L150,U_Calculation!$AD$2)","v":"Masonry blocks/Light Concrete block hollow thickness 300 mm"},0,0.65999999999999936,null,null,null,null,37,"Masonry blocks/Light Concrete block hollow thickness 300 mm","Blocs/Ceux en béton leger epaisseur 300 mm","Blocs/Ceux en béton léger épaisseur 300 mm",null,0.65999999999999936]
[null,{"$f":"INDEX(J151:L151,U_Calculation!$AD$2)","v":"Masonry blocks/Light Concrete block solid -structural- thickness 300 mm"},0,0.96999999999999975,null,null,null,null,42,"Masonry blocks/Light Concrete block solid -structural- thickness 300 mm","Blocs/Plein en béton leger -porteur- epaisseur 300 mm","Blocs/Plein en béton léger -porteur- épaisseur 300 mm",null,0.96999999999999975]
[null,{"$f":"INDEX(J152:L152,U_Calculation!$AD$2)","v":"Masonry blocks/Light Concrete block solid thickness 200 mm"},0,0.6999999999999994,null,null,null,null,39,"Masonry blocks/Light Concrete block solid thickness 200 mm","Blocs/Plein en béton leger epaisseur 200 mm","Blocs/Plein en béton léger épaisseur 200 mm",null,0.6999999999999994]
[null,{"$f":"INDEX(J153:L153,U_Calculation!$AD$2)","v":"Masonry blocks/Light Concrete block solid thickness 250 mm"},0,0.83000000000000118,null,null,null,null,40,"Masonry blocks/Light Concrete block solid thickness 250 mm","Blocs/Plein en béton leger epaisseur 250 mm","Blocs/Plein en béton léger épaisseur 250 mm",null,0.83000000000000118]
[null,{"$f":"INDEX(J154:L154,U_Calculation!$AD$2)","v":"Masonry blocks/Light Concrete block solid thickness 300 mm"},0,0.94999999999999851,null,null,null,null,41,"Masonry blocks/Light Concrete block solid thickness 300 mm","Blocs/Plein en béton leger epaisseur 300 mm","Blocs/Plein en béton léger épaisseur 300 mm",null,0.94999999999999851]
[null,{"$f":"INDEX(J155:L155,U_Calculation!$AD$2)","v":"Masonry ceramic/120 mm Ceramic brick 40 mm< G < 50 mm"},0,0.11519999999999962,null,null,null,null,6,"Masonry ceramic/120 mm Ceramic brick 40 mm< G < 50 mm","Fábrica Ladrillo/1/2 pie LM métrico o catalán 40 mm< G < 50 mm","Briques/12 a 15 cm plein  40 mm< G < 50 mm",null,0.11519999999999962]
[null,{"$f":"INDEX(J156:L156,U_Calculation!$AD$2)","v":"Masonry ceramic/120 mm Hollow ceramic brick 40 mm< G < 60 mm"},0,0.17280000000000012,null,null,null,null,7,"Masonry ceramic/120 mm Hollow ceramic brick 40 mm< G < 60 mm","Fábrica Ladrillo/1/2 pie LP métrico o catalán 40 mm< G < 60 mm","Briques/12 a 15 cm perforé  40 mm< G < 60 mm",null,0.17280000000000012]
[null,{"$f":"INDEX(J157:L157,U_Calculation!$AD$2)","v":"Masonry ceramic/120 mm Hollow ceramic brick 60 mm< G < 80 mm"},0,0.20160000000000006,null,null,null,null,8,"Masonry ceramic/120 mm Hollow ceramic brick 60 mm< G < 80 mm","Fábrica Ladrillo/1/2 pie LP métrico o catalán 60 mm< G < 80 mm","Briques/12 a 15 cm perforé  60 mm< G < 80 mm",null,0.20160000000000006]
[null,{"$f":"INDEX(J158:L158,U_Calculation!$AD$2)","v":"Masonry ceramic/120 mm Hollow ceramic brick 80 mm< G < 100 mm"},0,0.22080000000000011,null,null,null,null,9,"Masonry ceramic/120 mm Hollow ceramic brick 80 mm< G < 100 mm","Fábrica Ladrillo/1/2 pie LP métrico o catalán 80 mm< G < 100 mm","Briques/12 a 15 cm perforé  80 mm< G < 100 mm",null,0.22080000000000011]
[null,{"$f":"INDEX(J159:L159,U_Calculation!$AD$2)","v":"Masonry ceramic/240 mm Ceramic brick 40 mm< G < 50 mm"},0,0.15692307692307716,null,null,null,null,2,"Masonry ceramic/240 mm Ceramic brick 40 mm< G < 50 mm","Fábrica Ladrillo/1 pie LM métrico o catalán 40 mm< G < 50 mm","Briques/24 a 30 cm plein  40 mm< G < 50 mm",null,0.15692307692307716]
[null,{"$f":"INDEX(J160:L160,U_Calculation!$AD$2)","v":"Masonry ceramic/240 mm Hollow ceramic brick 240 mm  40 mm< G < 60 mm"},0,0.32307692307692298,null,null,null,null,3,"Masonry ceramic/240 mm Hollow ceramic brick 240 mm  40 mm< G < 60 mm","Fábrica Ladrillo/1 pie LP métrico o catalán 40 mm< G < 60 mm","Briques/24 a 30 cm perforé  40 mm< G < 60 mm",null,0.32307692307692298]
[null,{"$f":"INDEX(J161:L161,U_Calculation!$AD$2)","v":"Masonry ceramic/240 mm Hollow ceramic brick 60 mm< G < 80 mm"},0,0.37846153846153824,null,null,null,null,4,"Masonry ceramic/240 mm Hollow ceramic brick 60 mm< G < 80 mm","Fábrica Ladrillo/1 pie LP métrico o catalán 60 mm< G < 80 mm","Briques/24 a 30 cm perforé  60 mm< G < 80 mm",null,0.37846153846153824]
[null,{"$f":"INDEX(J162:L162,U_Calculation!$AD$2)","v":"Masonry ceramic/240 mm Hollow ceramic brick 80 mm< G < 100 mm"},0,0.43384615384615388,null,null,null,null,5,"Masonry ceramic/240 mm Hollow ceramic brick 80 mm< G < 100 mm","Fábrica Ladrillo/1 pie LP métrico o catalán 80 mm< G < 100 mm","Briques/24 a 30 cm perforé  80 mm< G < 100 mm",null,0.43384615384615388]
[null,{"$f":"INDEX(J163:L163,U_Calculation!$AD$2)","v":"Masonry ceramic/Partition wall de heavy ceramic brick [100 mm < E < 110 mm]"},0,0.23000000000000012,null,null,null,null,251,"Masonry ceramic/Partition wall de heavy ceramic brick [100 mm < E < 110 mm]","Fábrica Ladrillo/Tabicón de LH triple [100 mm < E < 110 mm]","Briques/Cloison alvéolée de creux triple [100 mm < E < 110 mm]",null,0.23000000000000012]
[null,{"$f":"INDEX(J164:L164,U_Calculation!$AD$2)","v":"Masonry ceramic/Partition wall de heavy ceramic brick big size 100 mm < E < 110 mm"},0,0.48000000000000076,null,null,null,null,252,"Masonry ceramic/Partition wall de heavy ceramic brick big size 100 mm < E < 110 mm","Fábrica Ladrillo/Tabicón de LH triple Gran Formato 100 mm < E < 110 mm","Briques/Cloison alvéolée de creux triple Grand Format 100 mm < E < 110 mm",null,0.48000000000000076]
[null,{"$f":"INDEX(J165:L165,U_Calculation!$AD$2)","v":"Masonry ceramic/Partition wall de light ceramic brick [40 mm < thickness < 60 mm]"},0,0.11250000000000013,null,null,null,null,253,"Masonry ceramic/Partition wall de light ceramic brick [40 mm < thickness < 60 mm]","Fábrica Ladrillo/Tabique de LH sencillo [40 mm < epaisseur < 60 mm]","Briques/Brique plâtrière de creux simple [40 mm < épaisseur < 60 mm]",null,0.11250000000000013]
[null,{"$f":"INDEX(J166:L166,U_Calculation!$AD$2)","v":"Masonry ceramic/Partition wall de light ceramic brick big size [40 mm < E < 60 mm]"},0,0.22500000000000026,null,null,null,null,254,"Masonry ceramic/Partition wall de light ceramic brick big size [40 mm < E < 60 mm]","Fábrica Ladrillo/Tabique de LH sencillo Gran Formato [40 mm < E < 60 mm]","Briques/Brique plâtrière de creux simple Grand Format [40 mm < E < 60 mm]",null,0.22500000000000026]
[null,{"$f":"INDEX(J167:L167,U_Calculation!$AD$2)","v":"Masonry ceramic/Partition wall de medium ceramic brick  [60 mm < E < 90 mm]"},0,0.24,null,null,null,null,249,"Masonry ceramic/Partition wall de medium ceramic brick  [60 mm < E < 90 mm]","Fábrica Ladrillo/Tabicón de LH doble  [60 mm < E < 90 mm]","Briques/Cloison alvéolée de creux double  [60 mm < E < 90 mm]",null,0.24]
[null,{"$f":"INDEX(J168:L168,U_Calculation!$AD$2)","v":"Masonry ceramic/Partition wall de medium ceramic brick big size 60 mm < E < 90 mm"},0,0.4949999999999995,null,null,null,null,250,"Masonry ceramic/Partition wall de medium ceramic brick big size 60 mm < E < 90 mm","Fábrica Ladrillo/Tabicón de LH doble Gran Formato 60 mm < E < 90 mm","Briques/Cloison alvéolée de creux double Grand Format 60 mm < E < 90 mm",null,0.4949999999999995]
[null,{"$f":"INDEX(J169:L169,U_Calculation!$AD$2)","v":"Metals/Aluminium"},230,0,null,null,null,null,13,"Metals/Aluminium","Metales/Aluminio","Métaux/Aluminium",230]
[null,{"$f":"INDEX(J170:L170,U_Calculation!$AD$2)","v":"Metals/Aluminium, alloy"},160,0,null,null,null,null,14,"Metals/Aluminium, alloy","Metales/Aluminio, aleaciones de","Métaux/Aluminium, alliages",160]
[null,{"$f":"INDEX(J171:L171,U_Calculation!$AD$2)","v":"Metals/Brass"},120,0,null,null,null,null,178,"Metals/Brass","Metales/Latón","Métaux/laiton",120]
[null,{"$f":"INDEX(J172:L172,U_Calculation!$AD$2)","v":"Metals/Bronze"},65,0,null,null,null,null,48,"Metals/Bronze","Metales/Bronce","Métaux/bronze",65]
[null,{"$f":"INDEX(J173:L173,U_Calculation!$AD$2)","v":"Metals/Chrome"},93.7,0,null,null,null,null,100,"Metals/Chrome","Metales/Cromo","Métaux/chrome",93.7]
[null,{"$f":"INDEX(J174:L174,U_Calculation!$AD$2)","v":"Metals/Copper"},380,0,null,null,null,null,85,"Metals/Copper","Metales/Cobre","Métaux/Cuivre",380]
[null,{"$f":"INDEX(J175:L175,U_Calculation!$AD$2)","v":"Metals/Iron"},72,0,null,null,null,null,170,"Metals/Iron","Metales/Hierro","Métaux/Fer",72]
[null,{"$f":"INDEX(J176:L176,U_Calculation!$AD$2)","v":"Metals/Iron foundry"},50,0,null,null,null,null,171,"Metals/Iron foundry","Metales/Hierro, fundición","Métaux/Fer fonte",50]
[null,{"$f":"INDEX(J177:L177,U_Calculation!$AD$2)","v":"Metals/Lead"},35,0,null,null,null,null,210,"Metals/Lead","Metales/Plomo","Métaux/Plomb",35]
[null,{"$f":"INDEX(J178:L178,U_Calculation!$AD$2)","v":"Metals/Linoleum"},0.17,0,null,null,null,null,179,"Metals/Linoleum","Metales/Linóleo","Métaux/Linoleum",0.17]
[null,{"$f":"INDEX(J179:L179,U_Calculation!$AD$2)","v":"Metals/Nickel"},90.7,0,null,null,null,null,196,"Metals/Nickel","Metales/Níquel","Métaux/Níquel",90.7]
[null,{"$f":"INDEX(J180:L180,U_Calculation!$AD$2)","v":"Metals/Steel"},50,0,null,null,null,null,10,"Metals/Steel","Metales/Acero","Métaux/Acier",50]
[null,{"$f":"INDEX(J181:L181,U_Calculation!$AD$2)","v":"Metals/Steel Iox"},17,0,null,null,null,null,11,"Metals/Steel Iox","Metales/Acero Inoxidable","Métaux/Acier inox",17]
[null,{"$f":"INDEX(J182:L182,U_Calculation!$AD$2)","v":"Metals/Tin"},66.599999999999994,0,null,null,null,null,114,"Metals/Tin","Metales/Estaño","Métaux/\n6/5000\nétain",66.599999999999994]
[null,{"$f":"INDEX(J183:L183,U_Calculation!$AD$2)","v":"Metals/Titanium"},21.9,0,null,null,null,null,279,"Metals/Titanium","Metales/Titanio","Métaux/Titanium",21.9]
[null,{"$f":"INDEX(J184:L184,U_Calculation!$AD$2)","v":"Metals/Zinc"},110,0,null,null,null,null,297,"Metals/Zinc","Metales/Zinc","Métaux/Zinc",110]
[null,{"$f":"INDEX(J185:L185,U_Calculation!$AD$2)","v":"Mortar/Gypsum Mortar"},0.8,0,null,null,null,null,191,"Mortar/Gypsum Mortar","Morteros/Mortero de yeso","Mortiers/Mortier de plâtre",0.8]
[null,{"$f":"INDEX(J186:L186,U_Calculation!$AD$2)","v":"Mortar/Light masonry mortar [vermiculite, perlite]"},0.41,0,null,null,null,null,182,"Mortar/Light masonry mortar [vermiculite, perlite]","Morteros/Mortero de áridos ligeros [vermiculita, perlita]","Mortiers/Mortier granulats légers [vermiculite, perlite]",0.41]
[null,{"$f":"INDEX(J187:L187,U_Calculation!$AD$2)","v":"Mortar/Masonry mortar 1000 < d < 1250"},0.55000000000000004,0,null,null,null,null,183,"Mortar/Masonry mortar 1000 < d < 1250","Morteros/Mortero de cemento o cal para albañilería y para revoco/enlucido 1000< d < 1250","Mortiers/Mortier de ciment ou batard pour enduits 1000< d < 1250",0.55000000000000004]
[null,{"$f":"INDEX(J188:L188,U_Calculation!$AD$2)","v":"Mortar/Masonry mortar 1250 < d < 1450"},0.7,0,null,null,null,null,184,"Mortar/Masonry mortar 1250 < d < 1450","Morteros/Mortero de cemento o cal para albañilería y para revoco/enlucido 1250 < d < 1450","Mortiers/Mortier de ciment ou batard pour enduits 1250 < d < 1450",0.7]
[null,{"$f":"INDEX(J189:L189,U_Calculation!$AD$2)","v":"Mortar/Masonry mortar 1450 < d < 1600"},0.8,0,null,null,null,null,185,"Mortar/Masonry mortar 1450 < d < 1600","Morteros/Mortero de cemento o cal para albañilería y para revoco/enlucido 1450 < d < 1600","Mortiers/Mortier de ciment ou batard pour enduits 1450 < d < 1600",0.8]
[null,{"$f":"INDEX(J190:L190,U_Calculation!$AD$2)","v":"Mortar/Masonry mortar 1600 < d < 1800"},1,0,null,null,null,null,186,"Mortar/Masonry mortar 1600 < d < 1800","Morteros/Mortero de cemento o cal para albañilería y para revoco/enlucido 1600 < d < 1800","Mortiers/Mortier de ciment ou batard pour enduits 1600 < d < 1800",1]
[null,{"$f":"INDEX(J191:L191,U_Calculation!$AD$2)","v":"Mortar/Masonry mortar 1800 < d < 2000"},1.3,0,null,null,null,null,187,"Mortar/Masonry mortar 1800 < d < 2000","Morteros/Mortero de cemento o cal para albañilería y para revoco/enlucido 1800 < d < 2000","Mortiers/Mortier de ciment ou batard pour enduits 1800 < d < 2000",1.3]
[null,{"$f":"INDEX(J192:L192,U_Calculation!$AD$2)","v":"Mortar/Masonry mortar 500 < d < 750"},0.3,0,null,null,null,null,188,"Mortar/Masonry mortar 500 < d < 750","Morteros/Mortero de cemento o cal para albañilería y para revoco/enlucido 500 < d < 750","Mortiers/Mortier de ciment ou batard pour enduits 500 < d < 750",0.3]
[null,{"$f":"INDEX(J193:L193,U_Calculation!$AD$2)","v":"Mortar/Masonry mortar 750 < d < 1000"},0.4,0,null,null,null,null,189,"Mortar/Masonry mortar 750 < d < 1000","Morteros/Mortero de cemento o cal para albañilería y para revoco/enlucido 750 < d < 1000","Mortiers/Mortier de ciment ou batard pour enduits 750 < d < 1000",0.4]
[null,{"$f":"INDEX(J194:L194,U_Calculation!$AD$2)","v":"Mortar/Masonry mortar d >2000"},1.8,0,null,null,null,null,190,"Mortar/Masonry mortar d >2000","Morteros/Mortero de cemento o cal para albañilería y para revoco/enlucido d >2000","Mortiers/Mortier de ciment ou batard pour enduits d >2000",1.8]
[null,{"$f":"INDEX(J195:L195,U_Calculation!$AD$2)","v":"Plastic/Acrylic"},{"$f":"M195","v":0.2},{"$f":"N195","v":0},null,null,null,null,12,"Plastic/Acrylic","Plásticos/Acrílicos","Plastiques/Acrylique",0.2]
[null,{"$f":"INDEX(J196:L196,U_Calculation!$AD$2)","v":"Plastic/Butadiene"},0.25,0,null,null,null,null,49,"Plastic/Butadiene","Plásticos/Butadieno","Plastiques/Butadiène",0.25]
[null,{"$f":"INDEX(J197:L197,U_Calculation!$AD$2)","v":"Plastic/EPDM"},0.25,0,null,null,null,null,115,"Plastic/EPDM","Plásticos/Etileno propileno dieno monómero [EPDM]","Plastiques/EPDM",0.25]
[null,{"$f":"INDEX(J198:L198,U_Calculation!$AD$2)","v":"Plastic/Epoxy resin"},0.2,0,null,null,null,null,232,"Plastic/Epoxy resin","Plásticos/Resina epoxi","Plastiques/Résine époxy",0.2]
[null,{"$f":"INDEX(J199:L199,U_Calculation!$AD$2)","v":"Plastic/Isobutene compact"},0.24,0,null,null,null,null,50,"Plastic/Isobutene compact","Plásticos/Butilo, [isobuteno], compacto/colado en caliente","Plastiques/Butieo, [isobutene], compact/coulé au chaud",0.24]
[null,{"$f":"INDEX(J200:L200,U_Calculation!$AD$2)","v":"Plastic/Neoprene [Polycloreprene]"},0.23,0,null,null,null,null,195,"Plastic/Neoprene [Polycloreprene]","Plásticos/Neopreno [policloropreno]","Plastiques/Néoprène [policloroprene]",0.23]
[null,{"$f":"INDEX(J201:L201,U_Calculation!$AD$2)","v":"Plastic/Phenolic resin"},0.3,0,null,null,null,null,233,"Plastic/Phenolic resin","Plásticos/Resina fenólica","Plastiques/Résine phénolique",0.3]
[null,{"$f":"INDEX(J202:L202,U_Calculation!$AD$2)","v":"Plastic/Plastic PVC"},0.17,0,null,null,null,null,83,"Plastic/Plastic PVC","Plásticos/Cloruro de polivinilo [PVC]","Plastiques/PVC",0.17]
[null,{"$f":"INDEX(J203:L203,U_Calculation!$AD$2)","v":"Plastic/Plastic PVC + 40% plasticizer"},0.14000000000000001,0,null,null,null,null,84,"Plastic/Plastic PVC + 40% plasticizer","Plásticos/Cloruro de polivinilo [PVC] + 40% plastificante","Plastiques/PVC + 40% plastifiant",0.14000000000000001]
[null,{"$f":"INDEX(J204:L204,U_Calculation!$AD$2)","v":"Plastic/Polyacetate"},0.3,0,null,null,null,null,211,"Plastic/Polyacetate","Plásticos/Poliacetato","Plastiques/Poly acétate",0.3]
[null,{"$f":"INDEX(J205:L205,U_Calculation!$AD$2)","v":"Plastic/Polyamide [nylon] [PA]"},0.25,0,null,null,null,null,212,"Plastic/Polyamide [nylon] [PA]","Plásticos/Poliamida [nylon] [PA]","Plastiques/Nylon polyamide [PA]",0.25]
[null,{"$f":"INDEX(J206:L206,U_Calculation!$AD$2)","v":"Plastic/Polyamide 6.6 [PA6.6] 25% glass fibre"},0.3,0,null,null,null,null,213,"Plastic/Polyamide 6.6 [PA6.6] 25% glass fibre","Plásticos/Poliamida 6.6 [PA6.6] 25%fibra vidrio","Plastiques/Polyamide 25% fibre de verre",0.3]
[null,{"$f":"INDEX(J207:L207,U_Calculation!$AD$2)","v":"Plastic/Polycarbonate [PC]"},0.2,0,null,null,null,null,214,"Plastic/Polycarbonate [PC]","Plásticos/Policarbonatos [PC]","Plastiques/Polycarbonate [PC]",0.2]
[null,{"$f":"INDEX(J208:L208,U_Calculation!$AD$2)","v":"Plastic/Polyester resin [UP]"},0.19,0,null,null,null,null,234,"Plastic/Polyester resin [UP]","Plásticos/Resina poliéster no saturado [UP]","Plastiques/Résine polyester non saturé [UP]",0.19]
[null,{"$f":"INDEX(J209:L209,U_Calculation!$AD$2)","v":"Plastic/Polyetilene high density [HDPE]"},0.5,0,null,null,null,null,216,"Plastic/Polyetilene high density [HDPE]","Plásticos/Polietileno alta densidad [HDPE]","Plastiques/HDPE",0.5]
[null,{"$f":"INDEX(J210:L210,U_Calculation!$AD$2)","v":"Plastic/Polyetilene low density [LDPE]"},0.33,0,null,null,null,null,217,"Plastic/Polyetilene low density [LDPE]","Plásticos/Polietileno baja densidad [LDPE]","Plastiques/LDPE",0.33]
[null,{"$f":"INDEX(J211:L211,U_Calculation!$AD$2)","v":"Plastic/Polyisobutylene"},0.2,0,null,null,null,null,218,"Plastic/Polyisobutylene","Plásticos/Poliisobutileno","Plastiques/Poly isobutilene",0.2]
[null,{"$f":"INDEX(J212:L212,U_Calculation!$AD$2)","v":"Plastic/Polymetilmetacrylate [PMMA]"},0.18,0,null,null,null,null,219,"Plastic/Polymetilmetacrylate [PMMA]","Plásticos/Polimetilmetacrilato [PMMA]","Plastiques/PMMA",0.18]
[null,{"$f":"INDEX(J213:L213,U_Calculation!$AD$2)","v":"Plastic/Polypropylene [PP]"},0.22,0,null,null,null,null,220,"Plastic/Polypropylene [PP]","Plásticos/Polipropileno [PP]","Plastiques/Polypropylène [PP]",0.22]
[null,{"$f":"INDEX(J214:L214,U_Calculation!$AD$2)","v":"Plastic/Polypropylene 25% glass fibre"},0.25,0,null,null,null,null,221,"Plastic/Polypropylene 25% glass fibre","Plásticos/Polipropileno 25%fibra vidrio","Plastiques/Polypropylène 25% fibre de verre",0.25]
[null,{"$f":"INDEX(J215:L215,U_Calculation!$AD$2)","v":"Plastic/Polystyrene [PS]"},0.16,0,null,null,null,null,215,"Plastic/Polystyrene [PS]","Plásticos/Poliestireno [PS]","Plastiques/PS",0.16]
[null,{"$f":"INDEX(J216:L216,U_Calculation!$AD$2)","v":"Plastic/Polysulfure"},0.4,0,null,null,null,null,222,"Plastic/Polysulfure","Plásticos/Polisulfuro","Plastiques/Polysulfure",0.4]
[null,{"$f":"INDEX(J217:L217,U_Calculation!$AD$2)","v":"Plastic/Polytetrafluoretylene [PTFE]"},0.25,0,null,null,null,null,223,"Plastic/Polytetrafluoretylene [PTFE]","Plásticos/Politetrafluoretileno [PTFE]","Plastiques/PTFE",0.25]
[null,{"$f":"INDEX(J218:L218,U_Calculation!$AD$2)","v":"Plastic/Polyuretane [PU]"},0.25,0,null,null,null,null,224,"Plastic/Polyuretane [PU]","Plásticos/Poliuretano [PU]","Plastiques/Polyuréthane [PU]",0.25]
[null,{"$f":"INDEX(J219:L219,U_Calculation!$AD$2)","v":"Plastic/Rubber, cellular"},0.06,0,null,null,null,null,80,"Plastic/Rubber, cellular","Plásticos/Caucho celular","Plastiques/caoutchouc cellulaire",0.06]
[null,{"$f":"INDEX(J220:L220,U_Calculation!$AD$2)","v":"Plastic/Rubber, natural"},0.13,0,null,null,null,null,81,"Plastic/Rubber, natural","Plásticos/Caucho natural","Plastiques/caoutchouc naturel",0.13]
[null,{"$f":"INDEX(J221:L221,U_Calculation!$AD$2)","v":"Plastic/Rubber, rigid [ebonite], solid"},0.17,0,null,null,null,null,82,"Plastic/Rubber, rigid [ebonite], solid","Plásticos/Caucho rígido [ebonita], sólido","Plastiques/caoutchouc rigide [ébonite]",0.17]
[null,{"$f":"INDEX(J222:L222,U_Calculation!$AD$2)","v":"Plastic/Silica gel"},0.13,0,null,null,null,null,237,"Plastic/Silica gel","Plásticos/Sílice gel [desecante]","Plastiques/Gel de silice [desséchant]",0.13]
[null,{"$f":"INDEX(J223:L223,U_Calculation!$AD$2)","v":"Plastic/Silicon , pure"},0.35,0,null,null,null,null,239,"Plastic/Silicon , pure","Plásticos/Silicona pura","Plastiques/Silicone pure",0.35]
[null,{"$f":"INDEX(J224:L224,U_Calculation!$AD$2)","v":"Plastic/Silicon putty"},0.5,0,null,null,null,null,238,"Plastic/Silicon putty","Plásticos/Silicona masilla","Plastiques/Silicone mastique",0.5]
[null,{"$f":"INDEX(J225:L225,U_Calculation!$AD$2)","v":"Plastic/Urethane o Polyuretane [thermal bridges correction]"},0.21,0,null,null,null,null,281,"Plastic/Urethane o Polyuretane [thermal bridges correction]","Plásticos/Uretano o poliuretano [rotura de puente térmico]","Plastiques/Uréthane o polyuréthane [rupture des ponts thermiques]",0.21]
[null,{"$f":"INDEX(J226:L226,U_Calculation!$AD$2)","v":"Renders/Gypsum 1000 < d < 1300"},0.56999999999999995,0,null,null,null,null,102,"Renders/Gypsum 1000 < d < 1300","Enlucidos/De yeso 1000 < d < 1300","Garniture/En plâtre 1000 < d < 1300",0.56999999999999995]
[null,{"$f":"INDEX(J227:L227,U_Calculation!$AD$2)","v":"Renders/Gypsum d < 1000"},0.4,0,null,null,null,null,105,"Renders/Gypsum d < 1000","Enlucidos/De yeso d < 1000","Garniture/En plâtre d < 1000",0.4]
[null,{"$f":"INDEX(J228:L228,U_Calculation!$AD$2)","v":"Renders/Gypsum insulating 500 < d < 600"},0.18,0,null,null,null,null,103,"Renders/Gypsum insulating 500 < d < 600","Enlucidos/De yeso aislante 500 < d < 600","Garniture/En plâtre isolant 500 < d < 600",0.18]
[null,{"$f":"INDEX(J229:L229,U_Calculation!$AD$2)","v":"Renders/Gypsum insulating 600 < d < 900"},0.3,0,null,null,null,null,104,"Renders/Gypsum insulating 600 < d < 900","Enlucidos/De yeso aislante 600 < d < 900","Garniture/En plâtre isolant 600 < d < 900",0.3]
[null,{"$f":"INDEX(J230:L230,U_Calculation!$AD$2)","v":"Soils and rocks/Basalt [2700 < d < 3000]"},3.5,0,null,null,null,null,25,"Soils and rocks/Basalt [2700 < d < 3000]","Suelos y rocas/Basalto [2700 < d < 3000]","Sols et pierres/Basalte [2700 < d < 3000]",3.5]
[null,{"$f":"INDEX(J231:L231,U_Calculation!$AD$2)","v":"Soils and rocks/Clay or slime [1200 < d < 1800]"},1.5,0,null,null,null,null,16,"Soils and rocks/Clay or slime [1200 < d < 1800]","Suelos y rocas/Arcilla o limo [1200 < d < 1800]","Sols et pierres/Argile ou Limon [1200 < d < 1800]",1.5]
[null,{"$f":"INDEX(J232:L232,U_Calculation!$AD$2)","v":"Soils and rocks/Compressed soil [1770 < d < 2000]"},1.1000000000000001,0,null,null,null,null,277,"Soils and rocks/Compressed soil [1770 < d < 2000]","Suelos y rocas/Tierra apisonada, adobe, bloques de tierra comprimida [1770 < d < 2000]","Sols et pierres/Terre pisé, adobe, blocs de terre comprimée [1770 < d < 2000]",1.1000000000000001]
[null,{"$f":"INDEX(J233:L233,U_Calculation!$AD$2)","v":"Soils and rocks/Flint [2600 < d < 2800]"},2.6,0,null,null,null,null,236,"Soils and rocks/Flint [2600 < d < 2800]","Suelos y rocas/Sílex [2600 < d < 2800]","Sols et pierres/Silex [2600 < d < 2800]",2.6]
[null,{"$f":"INDEX(J234:L234,U_Calculation!$AD$2)","v":"Soils and rocks/Gneiss [2300 < d < 2900]"},3.5,0,null,null,null,null,168,"Soils and rocks/Gneiss [2300 < d < 2900]","Suelos y rocas/Gneis, Pórfido [2300 < d < 2900]","Sols et pierres/Gneiss, porphyre [2300 < d < 2900]",3.5]
[null,{"$f":"INDEX(J235:L235,U_Calculation!$AD$2)","v":"Soils and rocks/Granite [2500 < d < 2700]"},2.8,0,null,null,null,null,169,"Soils and rocks/Granite [2500 < d < 2700]","Suelos y rocas/Granito [2500 < d < 2700]","Sols et pierres/Granit [2500 < d < 2700]",2.8]
[null,{"$f":"INDEX(J236:L236,U_Calculation!$AD$2)","v":"Soils and rocks/Limestone, extra hard [2200 < d < 2590]"},2.2999999999999998,0,null,null,null,null,55,"Soils and rocks/Limestone, extra hard [2200 < d < 2590]","Suelos y rocas/Caliza, muy dura [2200 < d < 2590]","Sols et pierres/Calcaire, très dur [2200 < d < 2590]",2.2999999999999998]
[null,{"$f":"INDEX(J237:L237,U_Calculation!$AD$2)","v":"Soils and rocks/Limestone, extra soft [d < 1590]"},0.85,0,null,null,null,null,54,"Soils and rocks/Limestone, extra soft [d < 1590]","Suelos y rocas/Caliza, muy blanda [d < 1590]","Sols et pierres/Calcaire, très légère [d < 1590]",0.85]
[null,{"$f":"INDEX(J238:L238,U_Calculation!$AD$2)","v":"Soils and rocks/Limestone, hard [2000 < d < 2190]"},1.7,0,null,null,null,null,52,"Soils and rocks/Limestone, hard [2000 < d < 2190]","Suelos y rocas/Caliza, dura [2000 < d < 2190]","Sols et pierres/Calcaire, dur [2000 < d < 2190]",1.7]
[null,{"$f":"INDEX(J239:L239,U_Calculation!$AD$2)","v":"Soils and rocks/Limestone, medium hard [1800 < d < 1990]"},1.4,0,null,null,null,null,53,"Soils and rocks/Limestone, medium hard [1800 < d < 1990]","Suelos y rocas/Caliza, dureza media [1800 < d < 1990]","Sols et pierres/Calcaire, dureté moyenne [1800 < d < 1990]",1.4]
[null,{"$f":"INDEX(J240:L240,U_Calculation!$AD$2)","v":"Soils and rocks/Limestone, soft [1600 < d < 1790]"},1.1000000000000001,0,null,null,null,null,51,"Soils and rocks/Limestone, soft [1600 < d < 1790]","Suelos y rocas/Caliza, blanda [1600 < d < 1790]","Sols et pierres/Calcaire, légère [1600 < d < 1790]",1.1000000000000001]
[null,{"$f":"INDEX(J241:L241,U_Calculation!$AD$2)","v":"Soils and rocks/Marble [2600 < d < 2800]"},3.5,0,null,null,null,null,180,"Soils and rocks/Marble [2600 < d < 2800]","Suelos y rocas/Mármol [2600 < d < 2800]","Sols et pierres/Marbre [2600 < d < 2800]",3.5]
[null,{"$f":"INDEX(J242:L242,U_Calculation!$AD$2)","v":"Soils and rocks/Porous natural stone [ie. Lava] d < 1600"},0.55000000000000004,0,null,null,null,null,235,"Soils and rocks/Porous natural stone [ie. Lava] d < 1600","Suelos y rocas/Roca natural porosa [por ejem. Lava] d < 1600","Sols et pierres/Pierre naturelle poreuse [ex. Lave] d < 1600",0.55000000000000004]
[null,{"$f":"INDEX(J243:L243,U_Calculation!$AD$2)","v":"Soils and rocks/Pumice, natural [d < 400]"},0.12,0,null,null,null,null,203,"Soils and rocks/Pumice, natural [d < 400]","Suelos y rocas/Piedra pómez natural [d < 400]","Sols et pierres/Ponce naturelle [d < 400]",0.12]
[null,{"$f":"INDEX(J244:L244,U_Calculation!$AD$2)","v":"Soils and rocks/Quartz"},1.4,0,null,null,null,null,101,"Soils and rocks/Quartz","Suelos y rocas/Cuarzo","Sols et pierres/Quars",1.4]
[null,{"$f":"INDEX(J245:L245,U_Calculation!$AD$2)","v":"Soils and rocks/Sand and gravel [1700 < d < 2200]"},2,0,null,null,null,null,17,"Soils and rocks/Sand and gravel [1700 < d < 2200]","Suelos y rocas/Arena y grava [1700 < d < 2200]","Sols et pierres/Sable et gravier [1700 < d < 2200]",2]
[null,{"$f":"INDEX(J246:L246,U_Calculation!$AD$2)","v":"Soils and rocks/Sandstone [1300 < d < 1900]"},0.9,0,null,null,null,null,21,"Soils and rocks/Sandstone [1300 < d < 1900]","Suelos y rocas/Asperón [1300 < d < 1900]","Sols et pierres/Asperón [1300 < d < 1900]",0.9]
[null,{"$f":"INDEX(J247:L247,U_Calculation!$AD$2)","v":"Soils and rocks/Sandstone [1900 < d < 2500]"},1.8,0,null,null,null,null,22,"Soils and rocks/Sandstone [1900 < d < 2500]","Suelos y rocas/Asperón [1900 < d < 2500]","Sols et pierres/Asperón [1900 < d < 2500]",1.8]
[null,{"$f":"INDEX(J248:L248,U_Calculation!$AD$2)","v":"Soils and rocks/Sandstone [2200 < d < 2600]"},3,0,null,null,null,null,18,"Soils and rocks/Sandstone [2200 < d < 2600]","Suelos y rocas/Arenisca [2200 < d < 2600]","Sols et pierres/Grès [2200 < d < 2600]",3]
[null,{"$f":"INDEX(J249:L249,U_Calculation!$AD$2)","v":"Soils and rocks/Schist slate [2000 < d < 2800]"},2.2000000000000002,0,null,null,null,null,113,"Soils and rocks/Schist slate [2000 < d < 2800]","Suelos y rocas/Esquisto, Pizarra [2000 < d < 2800]","Sols et pierres/Schiste, Ardoise [2000 < d < 2800]",2.2000000000000002]
[null,{"$f":"INDEX(J250:L250,U_Calculation!$AD$2)","v":"Soils and rocks/Traquita, andesita [2000 < d < 2700]"},1.1000000000000001,0,null,null,null,null,280,"Soils and rocks/Traquita, andesita [2000 < d < 2700]","Suelos y rocas/Traquita, andesita [2000 < d < 2700]","Sols et pierres/Traquite, andésite [2000 < d < 2700]",1.1000000000000001]
[null,{"$f":"INDEX(J251:L251,U_Calculation!$AD$2)","v":"Soils and rocks/Vegetal soil [d < 2050]"},0.52,0,null,null,null,null,278,"Soils and rocks/Vegetal soil [d < 2050]","Suelos y rocas/Tierra vegetal [d < 2050]","Sols et pierres/Terre végétale [d < 2050]",0.52]
[null,{"$f":"INDEX(J252:L252,U_Calculation!$AD$2)","v":"Tiles/Ceramic roof tile"},1.3,0,null,null,null,null,273,"Tiles/Ceramic roof tile","Tejas/Teja cerámica-porcelana","Tuiles/ Tuile de céramique ou porcelaine",1.3]
[null,{"$f":"INDEX(J253:L253,U_Calculation!$AD$2)","v":"Tiles/Clay roof tile"},1,0,null,null,null,null,274,"Tiles/Clay roof tile","Tejas/Teja de arcilla cocida","Tuiles/Tuile d'argile",1]
[null,{"$f":"INDEX(J254:L254,U_Calculation!$AD$2)","v":"Tiles/Concrete roof tile"},1.5,0,null,null,null,null,275,"Tiles/Concrete roof tile","Tejas/Teja de hormigón","Tuiles/Tuile de béton",1.5]
[null,{"$f":"INDEX(J255:L255,U_Calculation!$AD$2)","v":"Tiles/Plastic roof tile"},0.2,0,null,null,null,null,276,"Tiles/Plastic roof tile","Tejas/Teja plástico","Tuiles/Tuile plastique",0.2]
[null,{"$f":"INDEX(J256:L256,U_Calculation!$AD$2)","v":"URSA/URSA AIR Lambda 033"},3.3000000000000002E-2,0,null,null,null,null,282,"URSA/URSA AIR Lambda 033","URSA/URSA AIR Lambda 033","URSA/URSA AIR Lambda 033",3.3000000000000002E-2]
[null,{"$f":"INDEX(J257:L257,U_Calculation!$AD$2)","v":"URSA/URSA GLASSWOOL Lambda 032"},3.5999999999999997E-2,0,null,null,null,null,287,"URSA/URSA GLASSWOOL Lambda 032","URSA/URSA GLASSWOOL Lambda 032","URSA/URSA GLASSWOOL Lambda 032",3.5999999999999997E-2]
[null,{"$f":"INDEX(J258:L258,U_Calculation!$AD$2)","v":"URSA/URSA GLASSWOOL Lambda 035"},3.5000000000000003E-2,0,null,null,null,null,286,"URSA/URSA GLASSWOOL Lambda 035","URSA/URSA GLASSWOOL Lambda 035","URSA/URSA GLASSWOOL Lambda 035",3.5000000000000003E-2]
[null,{"$f":"INDEX(J259:L259,U_Calculation!$AD$2)","v":"URSA/URSA GLASSWOOL Lambda 036"},{"$f":"M259","v":3.5999999999999997E-2},{"$f":"N259","v":0},null,null,null,null,285,"URSA/URSA GLASSWOOL Lambda 036","URSA/URSA GLASSWOOL Lambda 036","URSA/URSA GLASSWOOL Lambda 036",3.5999999999999997E-2]
[null,{"$f":"INDEX(J260:L260,U_Calculation!$AD$2)","v":"URSA/URSA GLASSWOOL Lambda 039"},3.9E-2,0,null,null,null,null,284,"URSA/URSA GLASSWOOL Lambda 039","URSA/URSA GLASSWOOL Lambda 039","URSA/URSA GLASSWOOL Lambda 039",3.9E-2]
[null,{"$f":"INDEX(J261:L261,U_Calculation!$AD$2)","v":"URSA/URSA GLASSWOOL Lambda 040"},0.04,0,null,null,null,null,283,"URSA/URSA GLASSWOOL Lambda 040","URSA/URSA GLASSWOOL Lambda 040","URSA/URSA GLASSWOOL Lambda 040",0.04]
[null,{"$f":"INDEX(J262:L262,U_Calculation!$AD$2)","v":"URSA/URSA XPS thickness < 60 mm Lambda 034"},3.4000000000000002E-2,0,null,null,null,null,288,"URSA/URSA XPS thickness < 60 mm Lambda 034","URSA/URSA XPS espesor < 60 mm Lambda 034","URSA/URSA XPS épaisseur < 60 mm Lambda 034",3.4000000000000002E-2]
[null,{"$f":"INDEX(J263:L263,U_Calculation!$AD$2)","v":"URSA/URSA XPS thickness > 60 mm Lambda 036"},3.5999999999999997E-2,0,null,null,null,null,289,"URSA/URSA XPS thickness > 60 mm Lambda 036","URSA/URSA XPS espesor > 60 mm Lambda 036","URSA/URSA XPS épaisseur > 60 mm Lambda 036",3.5999999999999997E-2]
[null,{"$f":"INDEX(J264:L264,U_Calculation!$AD$2)","v":"Waterproofing/Asphalt"},0.7,0,null,null,null,null,19,"Waterproofing/Asphalt","Impermeabilización/Asfalto","Etanchéité/Asphalte",0.7]
[null,{"$f":"INDEX(J265:L265,U_Calculation!$AD$2)","v":"Waterproofing/Asphalt with sand"},0.15,0,null,null,null,null,20,"Waterproofing/Asphalt with sand","Impermeabilización/Asfalto arenoso","Etanchéité/Asphalte sablé",0.15]
[null,{"$f":"INDEX(J266:L266,U_Calculation!$AD$2)","v":"Waterproofing/Bitumen felt"},0.23,0,null,null,null,null,34,"Waterproofing/Bitumen felt","Impermeabilización/Betún fieltro o lámina","Etanchéité/Bitume en membrane",0.23]
[null,{"$f":"INDEX(J267:L267,U_Calculation!$AD$2)","v":"Waterproofing/Bitumen pure"},0.17,0,null,null,null,null,35,"Waterproofing/Bitumen pure","Impermeabilización/Betún puro","Etanchéité/Bitume pur",0.17]
[null,{"$f":"INDEX(J268:L268,U_Calculation!$AD$2)","v":"Wood/Balsa d < 200"},5.7000000000000002E-2,0,null,null,null,null,24,"Wood/Balsa d < 200","Madera/Balsa d < 200","Bois/Balsa d < 200",5.7000000000000002E-2]
[null,{"$f":"INDEX(J269:L269,U_Calculation!$AD$2)","v":"Wood/Cement particles board 250 < d < 350"},0.1,0,null,null,null,null,199,"Wood/Cement particles board 250 < d < 350","Madera/Paneles de fibras con conglomerante hidráulico 250 < d < 350","Bois/Panneaux de fibres avec liant hydraulique 250 < d < 350",0.1]
[null,{"$f":"INDEX(J270:L270,U_Calculation!$AD$2)","v":"Wood/Cement particles board 350 < d < 450"},0.12,0,null,null,null,null,200,"Wood/Cement particles board 350 < d < 450","Madera/Paneles de fibras con conglomerante hidráulico 350 < d < 450","Bois/Panneaux de fibres avec liant hydraulique 350 < d < 450",0.12]
[null,{"$f":"INDEX(J271:L271,U_Calculation!$AD$2)","v":"Wood/Cement particles board 450 < d < 550"},0.15,0,null,null,null,null,201,"Wood/Cement particles board 450 < d < 550","Madera/Paneles de fibras con conglomerante hidráulico 450 < d < 550","Bois/Panneaux de fibres avec liant hydraulique 450 < d < 550",0.15]
[null,{"$f":"INDEX(J272:L272,U_Calculation!$AD$2)","v":"Wood/Cement particles board d < 1200"},0.23,0,null,null,null,null,266,"Wood/Cement particles board d < 1200","Madera/Tablero de partículas con cemento d < 1200","Bois/Panneaux de particules avec ciment d < 1200",0.23]
[null,{"$f":"INDEX(J273:L273,U_Calculation!$AD$2)","v":"Wood/Compressed cork"},0.1,0,null,null,null,null,96,"Wood/Compressed cork","Madera/Corcho Comprimido ","Bois/Liège compressé ",0.1]
[null,{"$f":"INDEX(J274:L274,U_Calculation!$AD$2)","v":"Wood/Conifer, heavy 520 < d < 610"},0.18,0,null,null,null,null,95,"Wood/Conifer, heavy 520 < d < 610","Madera/Conífera, pesada 520 < d < 610","Bois/Conifère, lourde 520 < d < 610",0.18]
[null,{"$f":"INDEX(J275:L275,U_Calculation!$AD$2)","v":"Wood/Conifer, light d < 435"},0.13,0,null,null,null,null,93,"Wood/Conifer, light d < 435","Madera/Conífera, ligera d < 435","Bois/Conifère, légère d < 435",0.13]
[null,{"$f":"INDEX(J276:L276,U_Calculation!$AD$2)","v":"Wood/Conifer, medium density 435 < d < 520"},0.15,0,null,null,null,null,92,"Wood/Conifer, medium density 435 < d < 520","Madera/Conífera, de peso medio 435 < d < 520","Bois/Conifère, moyenne lourde 435 < d < 520",0.15]
[null,{"$f":"INDEX(J277:L277,U_Calculation!$AD$2)","v":"Wood/Conifer, very heavy d >610"},0.23,0,null,null,null,null,94,"Wood/Conifer, very heavy d >610","Madera/Conífera, muy pesada d >610","Bois/Conifère, très lourde d >610",0.23]
[null,{"$f":"INDEX(J278:L278,U_Calculation!$AD$2)","v":"Wood/Leafy wood, heavy 750 < d < 870"},0.23,0,null,null,null,null,147,"Wood/Leafy wood, heavy 750 < d < 870","Madera/Frondosa, pesada 750 < d < 870","Bois/feuillu, lourde 750 < d < 870",0.23]
[null,{"$f":"INDEX(J279:L279,U_Calculation!$AD$2)","v":"Wood/Leafy wood, light 435 < d < 565"},0.15,0,null,null,null,null,144,"Wood/Leafy wood, light 435 < d < 565","Madera/Frondosa, ligera 435 < d < 565","Bois/feuillu, légère 435 < d < 565",0.15]
[null,{"$f":"INDEX(J280:L280,U_Calculation!$AD$2)","v":"Wood/Leafy wood, medium 565 < d < 750"},0.18,0,null,null,null,null,148,"Wood/Leafy wood, medium 565 < d < 750","Madera/Frondosa, de peso medio 565 < d < 750","Bois/feuillu, moyenne lourde 565 < d < 750",0.18]
[null,{"$f":"INDEX(J281:L281,U_Calculation!$AD$2)","v":"Wood/Leafy wood, very heavy [d > 870]"},0.28999999999999998,0,null,null,null,null,146,"Wood/Leafy wood, very heavy [d > 870]","Madera/Frondosa, muy pesada [d > 870]","Bois/feuillu, très lourde [d > 870]",0.28999999999999998]
[null,{"$f":"INDEX(J282:L282,U_Calculation!$AD$2)","v":"Wood/Leafy wood, very light 200 < d < 435"},0.13,0,null,null,null,null,145,"Wood/Leafy wood, very light 200 < d < 435","Madera/Frondosa, muy ligera 200 < d < 435","Bois/feuillu, très légère 200 < d < 435",0.13]
[null,{"$f":"INDEX(J283:L283,U_Calculation!$AD$2)","v":"Wood/Particles board 180 < d < 270"},0.1,0,null,null,null,null,262,"Wood/Particles board 180 < d < 270","Madera/Tablero de partículas 180 < d < 270","Bois/Panneau de particules 180 < d < 270",0.1]
[null,{"$f":"INDEX(J284:L284,U_Calculation!$AD$2)","v":"Wood/Particles board 270 < d < 450"},0.13,0,null,null,null,null,263,"Wood/Particles board 270 < d < 450","Madera/Tablero de partículas 270 < d < 450","Bois/Panneau de particules 270 < d < 450",0.13]
[null,{"$f":"INDEX(J285:L285,U_Calculation!$AD$2)","v":"Wood/Particles board 450 < d < 640"},0.15,0,null,null,null,null,264,"Wood/Particles board 450 < d < 640","Madera/Tablero de partículas 450 < d < 640","Bois/Panneau de particules 450 < d < 640",0.15]
[null,{"$f":"INDEX(J286:L286,U_Calculation!$AD$2)","v":"Wood/Particles board 640 < d < 820"},0.18,0,null,null,null,null,265,"Wood/Particles board 640 < d < 820","Madera/Tablero de partículas 640 < d < 820","Bois/Panneau de particules 640 < d < 820",0.18]
[null,{"$f":"INDEX(J287:L287,U_Calculation!$AD$2)","v":"Wood/Plywood board 250 < d < 350"},0.11,0,null,null,null,null,255,"Wood/Plywood board 250 < d < 350","Madera/Tablero contrachapado 250 < d < 350","Bois/Panneau contreplaqué 250 < d < 350",0.11]
[null,{"$f":"INDEX(J288:L288,U_Calculation!$AD$2)","v":"Wood/Plywood board 350 < d < -450"},0.13,0,null,null,null,null,256,"Wood/Plywood board 350 < d < -450","Madera/Tablero contrachapado 350 < d < -450","Bois/Panneau contreplaqué 350 < d < -450",0.13]
[null,{"$f":"INDEX(J289:L289,U_Calculation!$AD$2)","v":"Wood/Plywood board 450 < d < 500"},0.15,0,null,null,null,null,257,"Wood/Plywood board 450 < d < 500","Madera/Tablero contrachapado 450 < d < 500","Bois/Panneau contreplaqué 450 < d < 500",0.15]
[null,{"$f":"INDEX(J290:L290,U_Calculation!$AD$2)","v":"Wood/Plywood board 500 < d < 600"},0.17,0,null,null,null,null,258,"Wood/Plywood board 500 < d < 600","Madera/Tablero contrachapado 500 < d < 600","Bois/Panneau contreplaqué 500 < d < 600",0.17]
[null,{"$f":"INDEX(J291:L291,U_Calculation!$AD$2)","v":"Wood/Plywood board 600 < d < 750"},0.21,0,null,null,null,null,259,"Wood/Plywood board 600 < d < 750","Madera/Tablero contrachapado 600 < d < 750","Bois/Panneau contreplaqué 600 < d < 750",0.21]
[null,{"$f":"INDEX(J292:L292,U_Calculation!$AD$2)","v":"Wood/Plywood board 700 < d < 900 "},0.24,0,null,null,null,null,260,"Wood/Plywood board 700 < d < 900 ","Madera/Tablero contrachapado 700 < d < 900 ","Bois/Panneau contreplaqué 700 < d < 900 ",0.24]
[null,{"$f":"INDEX(J293:L293,U_Calculation!$AD$2)","v":"Wood/Plywood board d < 250"},0.09,0,null,null,null,null,261,"Wood/Plywood board d < 250","Madera/Tablero contrachapado d < 250","Bois/Panneau contreplaqué d < 250",0.09]
[null,{"$f":"INDEX(J294:L294,U_Calculation!$AD$2)","v":"Wood/Wood boards, MDF 200 < d < 350"},0.1,0,null,null,null,null,268,"Wood/Wood boards, MDF 200 < d < 350","Madera/Tableros de fibras, incluyendo MDF 200 < d < 350","Bois/Panneau en fibres,  MDF 200 < d < 350",0.1]
[null,{"$f":"INDEX(J295:L295,U_Calculation!$AD$2)","v":"Wood/Wood boards, MDF 350 < d < 550"},0.14000000000000001,0,null,null,null,null,269,"Wood/Wood boards, MDF 350 < d < 550","Madera/Tableros de fibras, incluyendo MDF 350 < d < 550","Bois/Panneau en fibres,  MDF 350 < d < 550",0.14000000000000001]
[null,{"$f":"INDEX(J296:L296,U_Calculation!$AD$2)","v":"Wood/Wood boards, MDF 550 < d < 750"},0.18,0,null,null,null,null,270,"Wood/Wood boards, MDF 550 < d < 750","Madera/Tableros de fibras, incluyendo MDF 550 < d < 750","Bois/Panneau en fibres,  MDF 550 < d < 750",0.18]
[null,{"$f":"INDEX(J297:L297,U_Calculation!$AD$2)","v":"Wood/Wood boards, MDF 750 < d < 1000"},0.2,0,null,null,null,null,271,"Wood/Wood boards, MDF 750 < d < 1000","Madera/Tableros de fibras, incluyendo MDF 750 < d < 1000","Bois/Panneau en fibres,  MDF 750 < d < 1000",0.2]
[null,{"$f":"INDEX(J298:L298,U_Calculation!$AD$2)","v":"Wood/Wood boards, MDF d < 200"},7.0000000000000007E-2,0,null,null,null,null,272,"Wood/Wood boards, MDF d < 200","Madera/Tableros de fibras, incluyendo MDF d < 200","Bois/Panneau en fibres,  MDF d < 200",7.0000000000000007E-2]
[null,{"$f":"INDEX(J299:L299,U_Calculation!$AD$2)","v":"Wood/Wood Fibre boards [OSB] d < 650"},0.13,0,null,null,null,null,267,"Wood/Wood Fibre boards [OSB] d < 650","Madera/Tablero de virutas orientadas [OSB] d < 650","Bois/OSB d < 650",0.13]
[null,"Material 1"]
[null,"Material 2"]
[null,"Material 3"]
[null,"Material 4"]
[null,"Material 5"]
[null,"Material 6"]
[null,"Material 7"]
[null,"Material 8"]
[null,"Material 9"]
[null,"Material 10"]
[null,"Material 11"]
[null,"Material 12"]
[null,"Material 13"]
[null,"Material 14"]
[null,"Material 15"]
[null,"Material 16"]
[null,"Material 17"]
[null,"Material 18"]
[null,"Material 19"]
[null,"Material 20"]
[]
[]
[]
[]
[]
[]
[]
[]
[]
[]
[]
[]
[]
[]
[null,null,"Rsi (m2·K/W)","Rse (m2·K/W)","Rsi+Rse",null,null,null,null,"English","Español",null,"Français"]
[1,{"$f":"VLOOKUP(A335,$I$335:$M$337,U_Calculation!$AD$2+1,0)","v":"Facade (Rsi=0,13 Rse=0,04)"},0.13,0.04,{"$f":"C335+D335","v":0.17},null,null,null,1,"Facade (Rsi=0,13 Rse=0,04)","Fachada (Rsi=0,13 Rse=0,04)","Façade (Rsi=0,13 Rse=0,04)","Façade (Rsi=0,13 Rse=0,04)"]
[2,{"$f":"VLOOKUP(A336,$I$335:$M$337,U_Calculation!$AD$2+1,0)","v":"Roof (Rsi=0,1 Rse=0,04)"},0.1,0.04,{"$f":"C336+D336","v":0.14000000000000001},null,null,null,2,"Roof (Rsi=0,1 Rse=0,04)","Cubierta (Rsi=0,1 Rse=0,04)","Toiture (Rsi=0,1 Rse=0,04)","Toiture (Rsi=0,1 Rse=0,04)"]
[3,{"$f":"VLOOKUP(A337,$I$335:$M$337,U_Calculation!$AD$2+1,0)","v":"Floor (Rsi=0,17 Rse=0,04)"},0.17,0.04,0.21000000000000002,null,null,null,3,"Floor (Rsi=0,17 Rse=0,04)","Suelo (Rsi=0,17 Rse=0,04)","Sol (Rsi=0,17 Rse=0,04)","Sol (Rsi=0,17 Rse=0,04)"]
[null,"Otro 1 (Rsi & Rse)",0.13,0.13,0.26]
[null,"Otro 2 (Rsi & Rse)",0.1,0.1,0.2]
[null,"Otro 3 (Rsi & Rse)",0.17,0.17,0.34]
[]
[]
[]
[]
[]
[]
[null,"Nivel","Descripción","DU\"",null,null,null,null,null,"English","Español","Français"]
[1,0,{"$f":"VLOOKUP(A348,$I$348:$L$350,U_Calculation!$AD$2+1)","v":"No air voids within the insulation, or where only minor air voids are present that have no significant effect on the thermal transmittance."},0,null,null,null,null,1,"No air voids within the insulation, or where only minor air voids are present that have no significant effect on the thermal transmittance.","Sin cavidades de aire o con cavidades pequeñas que no tienen un efecto significativo sobre la transmitancia térmica","Sans vides d'air ou avec vides d'air sans influence significative sur la transmission thermique"]
[2,1,{"$f":"VLOOKUP(A349,$I$348:$L$350,U_Calculation!$AD$2+1)","v":"Air gaps bridging between the hot and cold side of the insulation, but not causing air circulation between the warm and cold side of the insulation."},0.01,null,null,null,null,2,"Air gaps bridging between the hot and cold side of the insulation, but not causing air circulation between the warm and cold side of the insulation.","Cavidades de aire en la cara caliente o fría del aislante que no provocan circulación de aire entre la zona caliente y fría","Vides d'air du cote chaud ou froid mais qui ne provoquent pas de circulation d'air entre la zone froide et chaude"]
[3,2,{"$f":"VLOOKUP(A350,$I$348:$L$350,U_Calculation!$AD$2+1)","v":"Air gaps bridging between the hot and cold side of the insulation, combined with cavities resulting in free air circulation between the warm and cold sides of the insulation."},0.04,null,null,null,null,3,"Air gaps bridging between the hot and cold side of the insulation, combined with cavities resulting in free air circulation between the warm and cold sides of the insulation.","Cavidades de aire en la cara caliente o fría del aislante que pueden provocar circulación de aire entre la zona caliente y fría","Vides d'air du cote froid ou chaud qui risquent te provoquer une circulation d'air ente la zone froide et chaude"]

{"sheet":"Instrucciones","index":2,"n_rows":100,"n_cols":1,"rows_kept":100,"cut":false,"hidden":false,"merged":[[99,0,99,15],[77,0,77,15],[49,0,49,15],[20,0,20,15],[0,0,0,15]]}
["1.- Modelización"]
[]
[]
[]
[]
[]
[]
[]
[]
[]
[]
[]
[]
[]
[]
[]
[]
[]
[]
[]
["2.- Introducción de datos"]
[]
[]
[]
[]
[]
[]
[]
[]
[]
[]
[]
[]
[]
[]
[]
[]
[]
[]
[]
[]
[]
[]
[]
[]
[]
[]
[]
[]
["3.- Correcciones por instalación"]
[]
[]
[]
[]
[]
[]
[]
[]
[]
[]
[]
[]
[]
[]
[]
[]
[]
[]
[]
[]
[]
[]
[]
[]
[]
[]
[]
["4.- Resultados"]
[]
[]
[]
[]
[]
[]
[]
[]
[]
[]
[]
[]
[]
[]
[]
[]
[]
[]
[]
[]
[]
["5.- Datos personalizados"]

{"sheet":"Instructions","index":3,"n_rows":98,"n_cols":1,"rows_kept":98,"cut":false,"hidden":false,"merged":[[0,0,0,15],[20,0,20,15],[49,0,49,15],[72,0,72,15],[97,0,97,15]]}
["1.- Modelling"]
[]
[]
[]
[]
[]
[]
[]
[]
[]
[]
[]
[]
[]
[]
[]
[]
[]
[]
[]
["2.-Data introduction"]
[]
[]
[]
[]
[]
[]
[]
[]
[]
[]
[]
[]
[]
[]
[]
[]
[]
[]
[]
[]
[]
[]
[]
[]
[]
[]
[]
[]
["3.- Installation corrections"]
[]
[]
[]
[]
[]
[]
[]
[]
[]
[]
[]
[]
[]
[]
[]
[]
[]
[]
[]
[]
[]
[]
["4.- Results"]
[]
[]
[]
[]
[]
[]
[]
[]
[]
[]
[]
[]
[]
[]
[]
[]
[]
[]
[]
[]
[]
[]
[]
[]
["5.- Costumized data"]

{"sheet":"Traduc","index":4,"n_rows":31,"n_cols":7,"rows_kept":31,"cut":false,"hidden":true,"merged":[]}
[]
[null,"Selection",null,null,"English","Español","FRANÇAIS"]
[1,{"$f":"VLOOKUP(A3,$D$3:$G$31,U_Calculation!$AD$2+1,0)","v":"Thermal Transmittance calculation opaque walls"},null,1,"Thermal Transmittance calculation opaque walls","Cálculo de la Transmitancia térmica  de cerramientos opacos","Calcul transmittance thermique parois opaques"]
[2,{"$f":"VLOOKUP(A4,$D$3:$G$31,U_Calculation!$AD$2+1,0)","v":"Construction shall be divided in layers (perpendicular to heat flow) and Sections (parallel to heat flow)"},null,2,"Construction shall be divided in layers (perpendicular to heat flow) and Sections (parallel to heat flow)","La construcción debe dividirse en capas (perpendiculares al flujo de calor)  y secciones (paralelas al flujo de calor) ","L'élément doit être divisé en couches (perpendiculaires au flux de chaleur) et sections (parallèles au fluxe de chaleur)"]
[3,{"$f":"VLOOKUP(A5,$D$3:$G$31,U_Calculation!$AD$2+1,0)","v":"Type of wall"},null,3,"Type of wall","Tipo cerramiento","Type de paroi"]
[4,{"$f":"VLOOKUP(A6,$D$3:$G$31,U_Calculation!$AD$2+1,0)","v":"Total Length (m)"},null,4,"Total Length (m)","Ancho Total (m)","Largeur totale (m)"]
[5,{"$f":"VLOOKUP(A7,$D$3:$G$31,U_Calculation!$AD$2+1,0)","v":"Section a"},null,5,"Section a","Sección a","Section a"]
[6,{"$f":"VLOOKUP(A8,$D$3:$G$31,U_Calculation!$AD$2+1,0)","v":"Section b"},null,6,"Section b","Sección b","Section b"]
[7,{"$f":"VLOOKUP(A9,$D$3:$G$31,U_Calculation!$AD$2+1,0)","v":"Section c"},null,7,"Section c","Sección c","Section c"]
[8,{"$f":"VLOOKUP(A10,$D$3:$G$31,U_Calculation!$AD$2+1,0)","v":"Section d"},null,8,"Section d","Sección d","Section d"]
[9,{"$f":"VLOOKUP(A11,$D$3:$G$31,U_Calculation!$AD$2+1,0)","v":"Section f"},null,9,"Section f","Sección f","Section f"]
[10,{"$f":"VLOOKUP(A12,$D$3:$G$31,U_Calculation!$AD$2+1,0)","v":"Section g"},null,10,"Section g","Sección g","Section g"]
[11,{"$f":"VLOOKUP(A13,$D$3:$G$31,U_Calculation!$AD$2+1,0)","v":"Length (m)"},null,11,"Length (m)","ancho (m)","Largeur (m)"]
[12,{"$f":"VLOOKUP(A14,$D$3:$G$31,U_Calculation!$AD$2+1,0)","v":"Layers"},null,12,"Layers","Capas","Couches"]
[13,{"$f":"VLOOKUP(A15,$D$3:$G$31,U_Calculation!$AD$2+1,0)","v":"Thickness (m)"},null,13,"Thickness (m)","Espesor (m)","Epaisseur (m)"]
[14,{"$f":"VLOOKUP(A16,$D$3:$G$31,U_Calculation!$AD$2+1,0)","v":"Product"},null,14,"Product","Material","Matériel"]
[15,{"$f":"VLOOKUP(A17,$D$3:$G$31,U_Calculation!$AD$2+1,0)","v":"Thermal Transmittance without corrections"},null,15,"Thermal Transmittance without corrections","Transmitancia térmica sin correcciones","Transmittance thermique sans considération des corrections"]
[16,{"$f":"VLOOKUP(A18,$D$3:$G$31,U_Calculation!$AD$2+1,0)","v":"Thermal Transmittance with corrections"},null,16,"Thermal Transmittance with corrections","Transmitancia térmica con correcciones","Transmittance thermique avec considération des corrections"]
[17,{"$f":"VLOOKUP(A19,$D$3:$G$31,U_Calculation!$AD$2+1,0)","v":"AIR GAPS CORRECTION"},null,17,"AIR GAPS CORRECTION","CORRECCION POR AISLANTE EN CONTACTO CON CAMARA DE AIRE","CORRECTION DUE AUX LAMES D'AIR"]
[18,{"$f":"VLOOKUP(A20,$D$3:$G$31,U_Calculation!$AD$2+1,0)","v":"Level"},null,18,"Level","Nivel","Niveau"]
[19,{"$f":"VLOOKUP(A21,$D$3:$G$31,U_Calculation!$AD$2+1,0)","v":"Layer Nº next to air gap"},null,19,"Layer Nº next to air gap","Nº Capa adyacente a la cámara de aire","Nº de Couche adjacente a la lame d'air"]
[20,{"$f":"VLOOKUP(A22,$D$3:$G$31,U_Calculation!$AD$2+1,0)","v":"FASTENERS CORRECTION"},null,20,"FASTENERS CORRECTION","CORRECCION POR FIJACIONES","CORRECTION DUE AUX FIXATIONS"]
[21,{"$f":"VLOOKUP(A23,$D$3:$G$31,U_Calculation!$AD$2+1,0)","v":"Fasteners density (un/m2)"},null,21,"Fasteners density (un/m2)","Numero de fijaciones por m2","Numéro de fixations au m2"]
[22,{"$f":"VLOOKUP(A24,$D$3:$G$31,U_Calculation!$AD$2+1,0)","v":"Fasteners thermal conductivity (W/mK)"},null,22,"Fasteners thermal conductivity (W/mK)","Conductividad térmica de la fijación W/mK","Conductivité thermique de la fixation (W/mK)"]
[23,{"$f":"VLOOKUP(A25,$D$3:$G$31,U_Calculation!$AD$2+1,0)","v":"Areca of fastener (m2)"},null,23,"Areca of fastener (m2)","Sección de la fijación (m2)","Section de la fixation (m2)"]
[24,{"$f":"VLOOKUP(A26,$D$3:$G$31,U_Calculation!$AD$2+1,0)","v":"Insulation Thickness d0 (m)"},null,24,"Insulation Thickness d0 (m)","Espesor aislante (do) (m)","Epaisseur de l'isolant d0 (m)"]
[25,{"$f":"VLOOKUP(A27,$D$3:$G$31,U_Calculation!$AD$2+1,0)","v":"Fastener penetration thickness d1 (m)"},null,25,"Fastener penetration thickness d1 (m)","Espesor penetración fijación (d1) (m)","Epaisseur de la pénétration de la fixation (m)"]
[26,{"$f":"VLOOKUP(A28,$D$3:$G$31,U_Calculation!$AD$2+1,0)","v":"Layer nº peented by fastener"},null,26,"Layer nº peented by fastener","Nº de la capa afectadas por la fijación","Nº de la couche pénétré par l'isolant"]
[27,{"$f":"VLOOKUP(A29,$D$3:$G$31,U_Calculation!$AD$2+1,0)","v":"INVERTED ROOF CORRECTION"},null,27,"INVERTED ROOF CORRECTION","CORRECCION POR CUBIERTA INVERTIDA","CORRECTION POUR TOITURE INVERSÉE"]
[28,{"$f":"VLOOKUP(A30,$D$3:$G$31,U_Calculation!$AD$2+1,0)","v":"Average rain precipitation (mm/day)"},null,28,"Average rain precipitation (mm/day)","Precipitación media de lluvia (mm/día)","Précipitation pluie moyenne (mm/jour)"]
[29,{"$f":"VLOOKUP(A31,$D$3:$G$31,U_Calculation!$AD$2+1,0)","v":"Layer nº above insulation"},null,29,"Layer nº above insulation","Nº de las capas por encima del aislamiento","Nº couches au-dessus de l'isolant"]